Workbook

Sheet Market Summery
A2: Rank | B2: MOST ACTIVE OPTIONS | J2: Rank | K2: Most OI Base High Volume | S2: I'm Sandip R. Pawar, a full-time trader and professional software developer.
B3: SYMBOL | C3: EXPIRY | D3: OPTION TYPE | E3: STRIKE PRICE | F3: LTP | G3: % CHANGE | K3: SYMBOL | L3: COI | M3: Volume
A4: 1 | B4: =mac!A2 -> NIFTY | C4: =mac!B2 -> 2026-04-13 | D4: =mac!C2 -> Call | E4: =mac!D2 -> 23900 | F4: =mac!E2 -> 0.05 | G4: =mac!F2 -> -99.97836434 | J4: 1 | K4: =OIG!U2 -> RELIANCE | L4: =OIG!V2 -> 17633 | M4: =OIG!W2 -> 274025 | S4: For more Free Tools visit :
A5: 2 | B5: =mac!A3 -> NIFTY | C5: =mac!B3 -> 2026-04-13 | D5: =mac!C3 -> Call | E5: =mac!D3 -> 23850 | F5: =mac!E3 -> 0.05 | G5: =mac!F3 -> -99.98140918 | J5: 2 | K5: =OIG!U3 -> HDFCBANK | L5: =OIG!V3 -> 19894 | M5: =OIG!W3 -> 239919 | S5: https://www.appsportal.in
A6: 3 | B6: =mac!A4 -> NIFTY | C6: =mac!B4 -> 2026-04-13 | D6: =mac!C4 -> Put | E6: =mac!D4 -> 23800 | F6: =mac!E4 -> 0.05 | G6: =mac!F4 -> -99.91701245 | J6: 3 | K6: =OIG!U4 -> TCS | L6: =OIG!V4 -> 14969 | M6: =OIG!W4 -> 237901
A7: 4 | B7: =mac!A5 -> NIFTY | C7: =mac!B5 -> 2026-04-13 | D7: =mac!C5 -> Put | E7: =mac!D5 -> 23850 | F7: =mac!E5 -> 7.3 | G7: =mac!F5 -> -89.73998595 | J7: 4 | K7: =OIG!U5 -> SBIN | L7: =OIG!V5 -> 534 | M7: =OIG!W5 -> 164411 | S7: Let’s trade smarter and grow together! 🚀📈
A8: 5 | B8: =mac!A6 -> NIFTY | C8: =mac!B6 -> 2026-04-13 | D8: =mac!C6 -> Call | E8: =mac!D6 -> 23800 | F8: =mac!E6 -> 42.55 | G8: =mac!F6 -> -86.18282189 | J8: 5 | K8: =OIG!U6 -> MARUTI | L8: =OIG!V6 -> 17052 | M8: =OIG!W6 -> 160015
A9: 16 | B9: =mac!A7 -> NIFTY | C9: =mac!B7 -> 2026-04-13 | D9: =mac!C7 -> Call | E9: =mac!D7 -> 24000 | F9: =mac!E7 -> 0.05 | G9: =mac!F7 -> -99.9703176 | J9: 6 | K9: =OIG!U7 -> TATAPOWER | L9: =OIG!V7 -> 4472 | M9: =OIG!W7 -> 155646
A10: 17 | B10: =mac!A8 -> NIFTY | C10: =mac!B8 -> 2026-04-13 | D10: =mac!C8 -> Call | E10: =mac!D8 -> 23950 | F10: =mac!E8 -> 0.05 | G10: =mac!F8 -> -99.97472194 | J10: 7 | K10: =OIG!U8 -> ICICIBANK | L10: =OIG!V8 -> 19502 | M10: =OIG!W8 -> 153753
A11: 18 | B11: =mac!A9 -> NIFTY | C11: =mac!B9 -> 2026-04-13 | D11: =mac!C9 -> Put | E11: =mac!D9 -> 23700 | F11: =mac!E9 -> 0.05 | G11: =mac!F9 -> -99.88262911 | J11: 8 | K11: =OIG!U9 -> NTPC | L11: =OIG!V9 -> 7027 | M11: =OIG!W9 -> 116549
A12: 19 | B12: =mac!A10 -> NIFTY | C12: =mac!B10 -> 2026-04-13 | D12: =mac!C10 -> Put | E12: =mac!D10 -> 23750 | F12: =mac!E10 -> 0.05 | G12: =mac!F10 -> -99.90118577 | J12: 9 | K12: =OIG!U10 -> LT | L12: =OIG!V10 -> 10354 | M12: =OIG!W10 -> 113721
A13: 20 | B13: =mac!A11 -> NIFTY | C13: =mac!B11 -> 2026-04-13 | D13: =mac!C11 -> Put | E13: =mac!D11 -> 23600 | F13: =mac!E11 -> 0.05 | G13: =mac!F11 -> -99.8392283 | J13: 10 | K13: =OIG!U11 -> ADANIENT | L13: =OIG!V11 -> 4707 | M13: =OIG!W11 -> 104522
A16: Sr | B16: MOST ACTIVE OPTION on OI Chg & Price Action | J16: Rank | K16: Top Future Contracts | P16: Rank | Q16: Top Stock Gainer of the Day
B17: Symbol | C17: Strike | D17: Type | E17: Ltp | F17: Price Chg | G17: Chg OI % | K17: Indices | L17: Ltp | M17: % Chg | N17: OI | Q17: SYMBOL | R17: Ltp | S17: % Chg
A18: 1 | B18: =IF( 'Slide-in-OI-Slide'!A2 <> 0, 'Slide-in-OI-Slide'!A2, "") -> TCS | C18: =IF( 'Slide-in-OI-Slide'!D2 <> 0, 'Slide-in-OI-Slide'!D2, "") -> 2500 | D18: =IF( 'Slide-in-OI-Slide'!C2 <> 0, 'Slide-in-OI-Slide'!C2, "") -> Put | E18: =IF( 'Slide-in-OI-Slide'!E2 <> 0, 'Slide-in-OI-Slide'!E2, "") -> 77.95 | F18: =IF( 'Slide-in-OI-Slide'!F2 <> 0, 'Slide-in-OI-Slide'!F2, "") -> 50.05 | G18: =IF( 'Slide-in-OI-Slide'!G2 <> 0, 'Slide-in-OI-Slide'!G2, "") -> -21.75 | J18: 1 | K18: =fut!T2 -> NIFTYNXT50 | L18: =fut!U2 -> 67349.2 | M18: =fut!S2 -> 9.681597901 | N18: =fut!V2 -> 657 | P18: 1 | Q18: =[1]G!A2 -> ADANIENSOL | R18: =[1]G!B2 -> 1154 | S18: =[1]G!D2 -> 6.98
A19: 2 | B19: =IF( 'Slide-in-OI-Slide'!A3 <> 0, 'Slide-in-OI-Slide'!A3, "") -> TCS | C19: =IF( 'Slide-in-OI-Slide'!D3 <> 0, 'Slide-in-OI-Slide'!D3, "") -> 2520 | D19: =IF( 'Slide-in-OI-Slide'!C3 <> 0, 'Slide-in-OI-Slide'!C3, "") -> Put | E19: =IF( 'Slide-in-OI-Slide'!E3 <> 0, 'Slide-in-OI-Slide'!E3, "") -> 91.45 | F19: =IF( 'Slide-in-OI-Slide'!F3 <> 0, 'Slide-in-OI-Slide'!F3, "") -> 47.98 | G19: =IF( 'Slide-in-OI-Slide'!G3 <> 0, 'Slide-in-OI-Slide'!G3, "") -> -40.88 | J19: 2 | K19: =fut!T3 -> ADANIPOWER | L19: =fut!U3 -> 182.2 | M19: =fut!S3 -> 3.165166185 | N19: =fut!V3 -> 18011 | P19: 2 | Q19: =[1]G!A3 -> SONACOMS | R19: =[1]G!B3 -> 554.5 | S19: =[1]G!D3 -> 6.01
A20: 3 | B20: =IF( 'Slide-in-OI-Slide'!A4 <> 0, 'Slide-in-OI-Slide'!A4, "") -> TATAPOWER | C20: =IF( 'Slide-in-OI-Slide'!D4 <> 0, 'Slide-in-OI-Slide'!D4, "") -> 400 | D20: =IF( 'Slide-in-OI-Slide'!C4 <> 0, 'Slide-in-OI-Slide'!C4, "") -> Call | E20: =IF( 'Slide-in-OI-Slide'!E4 <> 0, 'Slide-in-OI-Slide'!E4, "") -> 16.25 | F20: =IF( 'Slide-in-OI-Slide'!F4 <> 0, 'Slide-in-OI-Slide'!F4, "") -> 74.73 | G20: =IF( 'Slide-in-OI-Slide'!G4 <> 0, 'Slide-in-OI-Slide'!G4, "") -> -29.55 | J20: 3 | K20: =fut!T4 -> TATAPOWER | L20: =fut!U4 -> 411.25 | M20: =fut!S4 -> 2.530541012 | N20: =fut!V4 -> 38756 | P20: 3 | Q20: =[1]G!A4 -> NAM-INDIA | R20: =[1]G!B4 -> 960 | S20: =[1]G!D4 -> 5.65
A21: 4 | B21: =IF( 'Slide-in-OI-Slide'!A5 <> 0, 'Slide-in-OI-Slide'!A5, "") -> PIIND | C21: =IF( 'Slide-in-OI-Slide'!D5 <> 0, 'Slide-in-OI-Slide'!D5, "") -> 2700 | D21: =IF( 'Slide-in-OI-Slide'!C5 <> 0, 'Slide-in-OI-Slide'!C5, "") -> Put | E21: =IF( 'Slide-in-OI-Slide'!E5 <> 0, 'Slide-in-OI-Slide'!E5, "") -> 17.15 | F21: =IF( 'Slide-in-OI-Slide'!F5 <> 0, 'Slide-in-OI-Slide'!F5, "") -> 3.94 | G21: =IF( 'Slide-in-OI-Slide'!G5 <> 0, 'Slide-in-OI-Slide'!G5, "") -> -69.13 | J21: 4 | K21: =fut!T5 -> ADANIENT | L21: =fut!U5 -> 2139.8 | M21: =fut!S5 -> 2.109181141 | N21: =fut!V5 -> 51771 | P21: 4 | Q21: =[1]G!A5 -> AMBER | R21: =[1]G!B5 -> 7250 | S21: =[1]G!D5 -> 5.25
A22: 5 | B22: =IF( 'Slide-in-OI-Slide'!A6 <> 0, 'Slide-in-OI-Slide'!A6, "") ->  | C22: =IF( 'Slide-in-OI-Slide'!D6 <> 0, 'Slide-in-OI-Slide'!D6, "") ->  | D22: =IF( 'Slide-in-OI-Slide'!C6 <> 0, 'Slide-in-OI-Slide'!C6, "") ->  | E22: =IF( 'Slide-in-OI-Slide'!E6 <> 0, 'Slide-in-OI-Slide'!E6, "") ->  | F22: =IF( 'Slide-in-OI-Slide'!F6 <> 0, 'Slide-in-OI-Slide'!F6, "") ->  | G22: =IF( 'Slide-in-OI-Slide'!G6 <> 0, 'Slide-in-OI-Slide'!G6, "") ->  | J22: 5 | K22: =fut!T6 -> NTPC | L22: =fut!U6 -> 387.6 | M22: =fut!S6 -> 1.812450749 | N22: =fut!V6 -> 53616 | P22: 5 | Q22: =[1]G!A6 -> SIEMENS | R22: =[1]G!B6 -> 3390 | S22: =[1]G!D6 -> 5.2
A23: 6 | B23: =IF( 'Slide-in-OI-Slide'!A7 <> 0, 'Slide-in-OI-Slide'!A7, "") ->  | C23: =IF( 'Slide-in-OI-Slide'!D7 <> 0, 'Slide-in-OI-Slide'!D7, "") ->  | D23: =IF( 'Slide-in-OI-Slide'!C7 <> 0, 'Slide-in-OI-Slide'!C7, "") ->  | E23: =IF( 'Slide-in-OI-Slide'!E7 <> 0, 'Slide-in-OI-Slide'!E7, "") ->  | F23: =IF( 'Slide-in-OI-Slide'!F7 <> 0, 'Slide-in-OI-Slide'!F7, "") ->  | G23: =IF( 'Slide-in-OI-Slide'!G7 <> 0, 'Slide-in-OI-Slide'!G7, "") ->  | J23: 6 | K23: =fut!T7 -> ICICIBANK | L23: =fut!U7 -> 1346.7 | M23: =fut!S7 -> 1.691459639 | N23: =fut!V7 -> 146862 | P23: 6 | Q23: =[1]G!A7 -> EXIDEIND | R23: =[1]G!B7 -> 326 | S23: =[1]G!D7 -> 4.74
A24: 7 | B24: =IF( 'Slide-in-OI-Slide'!A8 <> 0, 'Slide-in-OI-Slide'!A8, "") ->  | C24: =IF( 'Slide-in-OI-Slide'!D8 <> 0, 'Slide-in-OI-Slide'!D8, "") ->  | D24: =IF( 'Slide-in-OI-Slide'!C8 <> 0, 'Slide-in-OI-Slide'!C8, "") ->  | E24: =IF( 'Slide-in-OI-Slide'!E8 <> 0, 'Slide-in-OI-Slide'!E8, "") ->  | F24: =IF( 'Slide-in-OI-Slide'!F8 <> 0, 'Slide-in-OI-Slide'!F8, "") ->  | G24: =IF( 'Slide-in-OI-Slide'!G8 <> 0, 'Slide-in-OI-Slide'!G8, "") ->  | J24: 7 | K24: =fut!T8 -> BHEL | L24: =fut!U8 -> 287 | M24: =fut!S8 -> 0.6523111454 | N24: =fut!V8 -> 40326 | P24: 7 | Q24: =[1]G!A8 -> CUMMINSIND | R24: =[1]G!B8 -> 5139 | S24: =[1]G!D8 -> 4.72
A25: 8 | B25: =IF( 'Slide-in-OI-Slide'!A9 <> 0, 'Slide-in-OI-Slide'!A9, "") ->  | C25: =IF( 'Slide-in-OI-Slide'!D9 <> 0, 'Slide-in-OI-Slide'!D9, "") ->  | D25: =IF( 'Slide-in-OI-Slide'!C9 <> 0, 'Slide-in-OI-Slide'!C9, "") ->  | E25: =IF( 'Slide-in-OI-Slide'!E9 <> 0, 'Slide-in-OI-Slide'!E9, "") ->  | F25: =IF( 'Slide-in-OI-Slide'!F9 <> 0, 'Slide-in-OI-Slide'!F9, "") ->  | G25: =IF( 'Slide-in-OI-Slide'!G9 <> 0, 'Slide-in-OI-Slide'!G9, "") ->  | J25: 8 | K25: =fut!T9 -> TMPV | L25: =fut!U9 -> 344 | M25: =fut!S9 -> 0.2915451895 | N25: =fut!V9 -> 67928 | P25: 8 | Q25: =[1]G!A9 -> LODHA | R25: =[1]G!B9 -> 825.85 | S25: =[1]G!D9 -> 4.6
A26: 9 | B26: =IF( 'Slide-in-OI-Slide'!A10 <> 0, 'Slide-in-OI-Slide'!A10, "") ->  | C26: =IF( 'Slide-in-OI-Slide'!D10 <> 0, 'Slide-in-OI-Slide'!D10, "") ->  | D26: =IF( 'Slide-in-OI-Slide'!C10 <> 0, 'Slide-in-OI-Slide'!C10, "") ->  | E26: =IF( 'Slide-in-OI-Slide'!E10 <> 0, 'Slide-in-OI-Slide'!E10, "") ->  | F26: =IF( 'Slide-in-OI-Slide'!F10 <> 0, 'Slide-in-OI-Slide'!F10, "") ->  | G26: =IF( 'Slide-in-OI-Slide'!G10 <> 0, 'Slide-in-OI-Slide'!G10, "") ->  | J26: 9 | K26: =fut!T10 -> AXISBANK | L26: =fut!U10 -> 1355 | M26: =fut!S10 -> 0.1700303098 | N26: =fut!V10 -> 88107 | P26: 9 | Q26: =[1]G!A10 -> ASHOKLEY | R26: =[1]G!B10 -> 177.99 | S26: =[1]G!D10 -> 4.47
A27: 10 | B27: =IF( 'Slide-in-OI-Slide'!A11 <> 0, 'Slide-in-OI-Slide'!A11, "") ->  | C27: =IF( 'Slide-in-OI-Slide'!D11 <> 0, 'Slide-in-OI-Slide'!D11, "") ->  | D27: =IF( 'Slide-in-OI-Slide'!C11 <> 0, 'Slide-in-OI-Slide'!C11, "") ->  | E27: =IF( 'Slide-in-OI-Slide'!E11 <> 0, 'Slide-in-OI-Slide'!E11, "") ->  | F27: =IF( 'Slide-in-OI-Slide'!F11 <> 0, 'Slide-in-OI-Slide'!F11, "") ->  | G27: =IF( 'Slide-in-OI-Slide'!G11 <> 0, 'Slide-in-OI-Slide'!G11, "") ->  | J27: 10 | K27: =fut!T11 -> LT | L27: =fut!U11 -> 3952.2 | M27: =fut!S11 -> -0.3404190937 | N27: =fut!V11 -> 78023 | P27: 10 | Q27: =[1]G!A11 -> MOTHERSON | R27: =[1]G!B11 -> 122.1 | S27: =[1]G!D11 -> 4.45
A28: 11 | B28: =IF( 'Slide-in-OI-Slide'!A12 <> 0, 'Slide-in-OI-Slide'!A12, "") ->  | C28: =IF( 'Slide-in-OI-Slide'!D12 <> 0, 'Slide-in-OI-Slide'!D12, "") ->  | D28: =IF( 'Slide-in-OI-Slide'!C12 <> 0, 'Slide-in-OI-Slide'!C12, "") ->  | E28: =IF( 'Slide-in-OI-Slide'!E12 <> 0, 'Slide-in-OI-Slide'!E12, "") ->  | F28: =IF( 'Slide-in-OI-Slide'!F12 <> 0, 'Slide-in-OI-Slide'!F12, "") ->  | G28: =IF( 'Slide-in-OI-Slide'!G12 <> 0, 'Slide-in-OI-Slide'!G12, "") -> 
A29: 12 | B29: =IF( 'Slide-in-OI-Slide'!A13 <> 0, 'Slide-in-OI-Slide'!A13, "") ->  | C29: =IF( 'Slide-in-OI-Slide'!D13 <> 0, 'Slide-in-OI-Slide'!D13, "") ->  | D29: =IF( 'Slide-in-OI-Slide'!C13 <> 0, 'Slide-in-OI-Slide'!C13, "") ->  | E29: =IF( 'Slide-in-OI-Slide'!E13 <> 0, 'Slide-in-OI-Slide'!E13, "") ->  | F29: =IF( 'Slide-in-OI-Slide'!F13 <> 0, 'Slide-in-OI-Slide'!F13, "") ->  | G29: =IF( 'Slide-in-OI-Slide'!G13 <> 0, 'Slide-in-OI-Slide'!G13, "") ->  | J29: Rank | K29: Bearish Future Contracts | P29: Rank | Q29: Bottom Stock Loser of the day
A30: 13 | B30: =IF( 'Slide-in-OI-Slide'!A14 <> 0, 'Slide-in-OI-Slide'!A14, "") ->  | C30: =IF( 'Slide-in-OI-Slide'!D14 <> 0, 'Slide-in-OI-Slide'!D14, "") ->  | D30: =IF( 'Slide-in-OI-Slide'!C14 <> 0, 'Slide-in-OI-Slide'!C14, "") ->  | E30: =IF( 'Slide-in-OI-Slide'!E14 <> 0, 'Slide-in-OI-Slide'!E14, "") ->  | F30: =IF( 'Slide-in-OI-Slide'!F14 <> 0, 'Slide-in-OI-Slide'!F14, "") ->  | G30: =IF( 'Slide-in-OI-Slide'!G14 <> 0, 'Slide-in-OI-Slide'!G14, "") ->  | K30: Indices | L30: Ltp | M30: % Chg | N30: OI | Q30: SYMBOL | R30: Ltp | S30: % Chg
A31: 14 | B31: =IF( 'Slide-in-OI-Slide'!A15 <> 0, 'Slide-in-OI-Slide'!A15, "") ->  | C31: =IF( 'Slide-in-OI-Slide'!D15 <> 0, 'Slide-in-OI-Slide'!D15, "") ->  | D31: =IF( 'Slide-in-OI-Slide'!C15 <> 0, 'Slide-in-OI-Slide'!C15, "") ->  | E31: =IF( 'Slide-in-OI-Slide'!E15 <> 0, 'Slide-in-OI-Slide'!E15, "") ->  | F31: =IF( 'Slide-in-OI-Slide'!F15 <> 0, 'Slide-in-OI-Slide'!F15, "") ->  | G31: =IF( 'Slide-in-OI-Slide'!G15 <> 0, 'Slide-in-OI-Slide'!G15, "") ->  | J31: 1 | K31: =fut!T13 -> MARUTI | L31: =fut!U13 -> 13120 | M31: =fut!S13 -> -4.428904429 | N31: =fut!V13 -> 63675 | P31: 1 | Q31: =[1]L!A2 -> COALINDIA | R31: =[1]L!B2 -> 435.3 | S31: =[1]L!D2 -> -4.14
A32: 15 | B32: =IF( 'Slide-in-OI-Slide'!A16 <> 0, 'Slide-in-OI-Slide'!A16, "") ->  | C32: =IF( 'Slide-in-OI-Slide'!D16 <> 0, 'Slide-in-OI-Slide'!D16, "") ->  | D32: =IF( 'Slide-in-OI-Slide'!C16 <> 0, 'Slide-in-OI-Slide'!C16, "") ->  | E32: =IF( 'Slide-in-OI-Slide'!E16 <> 0, 'Slide-in-OI-Slide'!E16, "") ->  | F32: =IF( 'Slide-in-OI-Slide'!F16 <> 0, 'Slide-in-OI-Slide'!F16, "") ->  | G32: =IF( 'Slide-in-OI-Slide'!G16 <> 0, 'Slide-in-OI-Slide'!G16, "") ->  | J32: 2 | K32: =fut!T14 -> BAJFINANCE | L32: =fut!U14 -> 898.75 | M32: =fut!S14 -> -2.832585545 | N32: =fut!V14 -> 93140 | P32: 2 | Q32: HINDPETRO | R32: 238.4 | S32: -3.05
A33: 16 | B33: =IF( 'Slide-in-OI-Slide'!A17 <> 0, 'Slide-in-OI-Slide'!A17, "") ->  | C33: =IF( 'Slide-in-OI-Slide'!D17 <> 0, 'Slide-in-OI-Slide'!D17, "") ->  | D33: =IF( 'Slide-in-OI-Slide'!C17 <> 0, 'Slide-in-OI-Slide'!C17, "") ->  | E33: =IF( 'Slide-in-OI-Slide'!E17 <> 0, 'Slide-in-OI-Slide'!E17, "") ->  | F33: =IF( 'Slide-in-OI-Slide'!F17 <> 0, 'Slide-in-OI-Slide'!F17, "") ->  | G33: =IF( 'Slide-in-OI-Slide'!G17 <> 0, 'Slide-in-OI-Slide'!G17, "") ->  | J33: 3 | K33: =fut!T15 -> INDIGO | L33: =fut!U15 -> 4439 | M33: =fut!S15 -> -2.764391483 | N33: =fut!V15 -> 48053 | P33: 3 | Q33: =[1]L!A4 -> COFORGE | R33: =[1]L!B4 -> 1223 | S33: =[1]L!D4 -> -3.31
A34: 17 | B34: =IF( 'Slide-in-OI-Slide'!A18 <> 0, 'Slide-in-OI-Slide'!A18, "") ->  | C34: =IF( 'Slide-in-OI-Slide'!D18 <> 0, 'Slide-in-OI-Slide'!D18, "") ->  | D34: =IF( 'Slide-in-OI-Slide'!C18 <> 0, 'Slide-in-OI-Slide'!C18, "") ->  | E34: =IF( 'Slide-in-OI-Slide'!E18 <> 0, 'Slide-in-OI-Slide'!E18, "") ->  | F34: =IF( 'Slide-in-OI-Slide'!F18 <> 0, 'Slide-in-OI-Slide'!F18, "") ->  | G34: =IF( 'Slide-in-OI-Slide'!G18 <> 0, 'Slide-in-OI-Slide'!G18, "") ->  | J34: 4 | K34: =fut!T16 -> RELIANCE | L34: =fut!U16 -> 1318.3 | M34: =fut!S16 -> -2.708487085 | N34: =fut!V16 -> 160900 | P34: 4 | Q34: =[1]L!A5 -> INFY | R34: =[1]L!B5 -> 1291.4 | S34: =[1]L!D5 -> -3.02
A35: 18 | B35: =IF( 'Slide-in-OI-Slide'!A19 <> 0, 'Slide-in-OI-Slide'!A19, "") ->  | C35: =IF( 'Slide-in-OI-Slide'!D19 <> 0, 'Slide-in-OI-Slide'!D19, "") ->  | D35: =IF( 'Slide-in-OI-Slide'!C19 <> 0, 'Slide-in-OI-Slide'!C19, "") ->  | E35: =IF( 'Slide-in-OI-Slide'!E19 <> 0, 'Slide-in-OI-Slide'!E19, "") ->  | F35: =IF( 'Slide-in-OI-Slide'!F19 <> 0, 'Slide-in-OI-Slide'!F19, "") ->  | G35: =IF( 'Slide-in-OI-Slide'!G19 <> 0, 'Slide-in-OI-Slide'!G19, "") ->  | J35: 5 | K35: =fut!T17 -> TCS | L35: =fut!U17 -> 2458.2 | M35: =fut!S17 -> -2.157299793 | N35: =fut!V17 -> 187124 | P35: 5 | Q35: =[1]L!A6 -> TCS | R35: =[1]L!B6 -> 2523 | S35: =[1]L!D6 -> -2.55
A36: 19 | B36: =IF( 'Slide-in-OI-Slide'!A20 <> 0, 'Slide-in-OI-Slide'!A20, "") ->  | C36: =IF( 'Slide-in-OI-Slide'!D20 <> 0, 'Slide-in-OI-Slide'!D20, "") ->  | D36: =IF( 'Slide-in-OI-Slide'!C20 <> 0, 'Slide-in-OI-Slide'!C20, "") ->  | E36: =IF( 'Slide-in-OI-Slide'!E20 <> 0, 'Slide-in-OI-Slide'!E20, "") ->  | F36: =IF( 'Slide-in-OI-Slide'!F20 <> 0, 'Slide-in-OI-Slide'!F20, "") ->  | G36: =IF( 'Slide-in-OI-Slide'!G20 <> 0, 'Slide-in-OI-Slide'!G20, "") ->  | J36: 6 | K36: =fut!T18 -> HDFCBANK | L36: =fut!U18 -> 795.7 | M36: =fut!S18 -> -2.055637617 | N36: =fut!V18 -> 569050 | P36: 6 | Q36: =[1]L!A7 -> MPHASIS | R36: =[1]L!B7 -> 2329 | S36: =[1]L!D7 -> -2.36
A37: 20 | B37: =IF( 'Slide-in-OI-Slide'!A21 <> 0, 'Slide-in-OI-Slide'!A21, "") ->  | C37: =IF( 'Slide-in-OI-Slide'!D21 <> 0, 'Slide-in-OI-Slide'!D21, "") ->  | D37: =IF( 'Slide-in-OI-Slide'!C21 <> 0, 'Slide-in-OI-Slide'!C21, "") ->  | E37: =IF( 'Slide-in-OI-Slide'!E21 <> 0, 'Slide-in-OI-Slide'!E21, "") ->  | F37: =IF( 'Slide-in-OI-Slide'!F21 <> 0, 'Slide-in-OI-Slide'!F21, "") ->  | G37: =IF( 'Slide-in-OI-Slide'!G21 <> 0, 'Slide-in-OI-Slide'!G21, "") ->  | J37: 7 | K37: =fut!T19 -> M&M | L37: =fut!U19 -> 3215.2 | M37: =fut!S19 -> -1.561447554 | N37: =fut!V19 -> 85098 | P37: 7 | Q37: =[1]L!A8 -> LTM | R37: =[1]L!B8 -> 4495 | S37: =[1]L!D8 -> -1.68
A38: 21 | B38: =IF( 'Slide-in-OI-Slide'!A22 <> 0, 'Slide-in-OI-Slide'!A22, "") ->  | C38: =IF( 'Slide-in-OI-Slide'!D22 <> 0, 'Slide-in-OI-Slide'!D22, "") ->  | D38: =IF( 'Slide-in-OI-Slide'!C22 <> 0, 'Slide-in-OI-Slide'!C22, "") ->  | E38: =IF( 'Slide-in-OI-Slide'!E22 <> 0, 'Slide-in-OI-Slide'!E22, "") ->  | F38: =IF( 'Slide-in-OI-Slide'!F22 <> 0, 'Slide-in-OI-Slide'!F22, "") ->  | G38: =IF( 'Slide-in-OI-Slide'!G22 <> 0, 'Slide-in-OI-Slide'!G22, "") ->  | J38: 8 | K38: =fut!T20 -> HINDALCO | L38: =fut!U20 -> 979.2 | M38: =fut!S20 -> -1.469108473 | N38: =fut!V20 -> 50997 | P38: 8 | Q38: =[1]L!A9 -> TECHM | R38: =[1]L!B9 -> 1438.9 | S38: =[1]L!D9 -> -1.55
A39: 22 | B39: =IF( 'Slide-in-OI-Slide'!A23 <> 0, 'Slide-in-OI-Slide'!A23, "") ->  | C39: =IF( 'Slide-in-OI-Slide'!D23 <> 0, 'Slide-in-OI-Slide'!D23, "") ->  | D39: =IF( 'Slide-in-OI-Slide'!C23 <> 0, 'Slide-in-OI-Slide'!C23, "") ->  | E39: =IF( 'Slide-in-OI-Slide'!E23 <> 0, 'Slide-in-OI-Slide'!E23, "") ->  | F39: =IF( 'Slide-in-OI-Slide'!F23 <> 0, 'Slide-in-OI-Slide'!F23, "") ->  | G39: =IF( 'Slide-in-OI-Slide'!G23 <> 0, 'Slide-in-OI-Slide'!G23, "") ->  | J39: 9 | K39: =fut!T21 -> INFY | L39: =fut!U21 -> 1276 | M39: =fut!S21 -> -1.276595745 | N39: =fut!V21 -> 204213 | P39: 9 | Q39: =[1]L!A10 -> NAUKRI | R39: =[1]L!B10 -> 992 | S39: =[1]L!D10 -> -1.04
A40: 23 | B40: =IF( 'Slide-in-OI-Slide'!A24 <> 0, 'Slide-in-OI-Slide'!A24, "") ->  | C40: =IF( 'Slide-in-OI-Slide'!D24 <> 0, 'Slide-in-OI-Slide'!D24, "") ->  | D40: =IF( 'Slide-in-OI-Slide'!C24 <> 0, 'Slide-in-OI-Slide'!C24, "") ->  | E40: =IF( 'Slide-in-OI-Slide'!E24 <> 0, 'Slide-in-OI-Slide'!E24, "") ->  | F40: =IF( 'Slide-in-OI-Slide'!F24 <> 0, 'Slide-in-OI-Slide'!F24, "") ->  | G40: =IF( 'Slide-in-OI-Slide'!G24 <> 0, 'Slide-in-OI-Slide'!G24, "") ->  | J40: 10 | K40: =fut!T22 -> MIDCPNIFTY | L40: =fut!U22 -> 13289.55 | M40: =fut!S22 -> -1.218826731 | N40: =fut!V22 -> 21739 | P40: 10 | Q40: =[1]L!A11 -> HCLTECH | R40: =[1]L!B11 -> 1451 | S40: =[1]L!D11 -> -0.95
A41: 24 | B41: =IF( 'Slide-in-OI-Slide'!A25 <> 0, 'Slide-in-OI-Slide'!A25, "") ->  | C41: =IF( 'Slide-in-OI-Slide'!D25 <> 0, 'Slide-in-OI-Slide'!D25, "") ->  | D41: =IF( 'Slide-in-OI-Slide'!C25 <> 0, 'Slide-in-OI-Slide'!C25, "") ->  | E41: =IF( 'Slide-in-OI-Slide'!E25 <> 0, 'Slide-in-OI-Slide'!E25, "") ->  | F41: =IF( 'Slide-in-OI-Slide'!F25 <> 0, 'Slide-in-OI-Slide'!F25, "") ->  | G41: =IF( 'Slide-in-OI-Slide'!G25 <> 0, 'Slide-in-OI-Slide'!G25, "") -> 
A42: 25 | B42: =IF( 'Slide-in-OI-Slide'!A26 <> 0, 'Slide-in-OI-Slide'!A26, "") ->  | C42: =IF( 'Slide-in-OI-Slide'!D26 <> 0, 'Slide-in-OI-Slide'!D26, "") ->  | D42: =IF( 'Slide-in-OI-Slide'!C26 <> 0, 'Slide-in-OI-Slide'!C26, "") ->  | E42: =IF( 'Slide-in-OI-Slide'!E26 <> 0, 'Slide-in-OI-Slide'!E26, "") ->  | F42: =IF( 'Slide-in-OI-Slide'!F26 <> 0, 'Slide-in-OI-Slide'!F26, "") ->  | G42: =IF( 'Slide-in-OI-Slide'!G26 <> 0, 'Slide-in-OI-Slide'!G26, "") -> 
A45: Rank | B45: Sector Gainer | E45: Sector Loser
B46: Indices | C46: Ltp | D46: % Chg | E46: Indices | F46: Ltp | G46: % Chg
A47: 1 | B47: =Sectors!T2 -> INDIA VIX | C47: =Sectors!U2 -> 20.5 | D47: =Sectors!S2 -> 8.75 | E47: =Sectors!T13 -> NIFTY MOBILITY | F47: =Sectors!U13 -> 21023.6 | G47: =Sectors!S13 -> -2.12
A48: 2 | B48: =Sectors!T3 -> NIFTY50 TR 1X INV | C48: =Sectors!U3 -> 179.9 | D48: =Sectors!S3 -> 0.93 | E48: =Sectors!T14 -> NIFTY AUTO | F48: =Sectors!U14 -> 26084.55 | G48: =Sectors!S14 -> -2.09
A49: 3 | B49: =Sectors!T4 -> NIFTY50 PR 1X INV | C49: =Sectors!U4 -> 220.05 | D49: =Sectors!S4 -> 0.89 | E49: =Sectors!T15 -> NIFTY TRANS LOGIS | F49: =Sectors!U15 -> 23442.9 | G49: =Sectors!S15 -> -1.99
A50: 4 | B50: =Sectors!T5 -> NIFTY IND DEFENCE | C50: =Sectors!U5 -> 8334.5 | D50: =Sectors!S5 -> 0.42 | E50: =Sectors!T16 -> NIFTY50 TR 2X LEV | F50: =Sectors!U16 -> 17911.8 | G50: =Sectors!S16 -> -1.77 | K50: Fetching Method | L50: None
A51: 5 | B51: =Sectors!T6 -> NIFTY IPO | C51: =Sectors!U6 -> 2009.35 | D51: =Sectors!S6 -> 0.37 | E51: =Sectors!T17 -> NIFTY50 TR 2X LEV | F51: =Sectors!U17 -> 17911.8 | G51: =Sectors!S17 -> -1.77
A52: 6 | B52: =Sectors!T7 -> NIFTY CPSE | C52: =Sectors!U7 -> 7142.65 | D52: =Sectors!S7 -> 0.26 | E52: =Sectors!T18 -> NIFTY GROWSECT 15 | F52: =Sectors!U18 -> 10881.6 | G52: =Sectors!S18 -> -1.69 | K52: Mozila
A53: 7 | B53: =Sectors!T8 -> NIFTY ENERGY | C53: =Sectors!U8 -> 37195.05 | D53: =Sectors!S8 -> 0.06 | E53: =Sectors!T19 -> NIFTY200MOMENTM30 | F53: =Sectors!U19 -> 30007.6 | G53: =Sectors!S19 -> -1.66 | K53: Chrome
A54: 8 | B54: =Sectors!T9 -> BHARATBOND-APR31 | C54: =Sectors!U9 -> 1427.58 | D54: =Sectors!S9 -> 0.02 | E54: =Sectors!T20 -> NIFTY50 USD | F54: =Sectors!U20 -> 8839.2 | G54: =Sectors!S20 -> -1.64 | K54: None
A55: 9 | B55: =Sectors!T10 -> BHARATBOND-APR30 | C55: =Sectors!U10 -> 1573.42 | D55: =Sectors!S10 -> 0.01 | E55: =Sectors!T21 -> NIFTY INTERNET | F55: =Sectors!U21 -> 1161.3 | G55: =Sectors!S21 -> -1.61
A56: 10 | B56: =Sectors!T11 -> BHARATBOND-APR30 | C56: =Sectors!U11 -> 1573.42 | D56: =Sectors!S11 -> 0.01 | E56: =Sectors!T22 -> NIFTY MNC | F56: =Sectors!U22 -> 30028.55 | G56: =Sectors!S22 -> -1.49

Sheet mac (hidden)
A1: underlying | B1: expiryDate | C1: optionType | D1: strikePrice | E1: lastPrice | F1: pChange
A2: NIFTY | B2: 2026-04-13 | C2: Call | D2: 23900 | E2: 0.05 | F2: -99.97836434
A3: NIFTY | B3: 2026-04-13 | C3: Call | D3: 23850 | E3: 0.05 | F3: -99.98140918
A4: NIFTY | B4: 2026-04-13 | C4: Put | D4: 23800 | E4: 0.05 | F4: -99.91701245
A5: NIFTY | B5: 2026-04-13 | C5: Put | D5: 23850 | E5: 7.3 | F5: -89.73998595
A6: NIFTY | B6: 2026-04-13 | C6: Call | D6: 23800 | E6: 42.55 | F6: -86.18282189
A7: NIFTY | B7: 2026-04-13 | C7: Call | D7: 24000 | E7: 0.05 | F7: -99.9703176
A8: NIFTY | B8: 2026-04-13 | C8: Call | D8: 23950 | E8: 0.05 | F8: -99.97472194
A9: NIFTY | B9: 2026-04-13 | C9: Put | D9: 23700 | E9: 0.05 | F9: -99.88262911
A10: NIFTY | B10: 2026-04-13 | C10: Put | D10: 23750 | E10: 0.05 | F10: -99.90118577
A11: NIFTY | B11: 2026-04-13 | C11: Put | D11: 23600 | E11: 0.05 | F11: -99.8392283
A12: NIFTY | B12: 2026-04-13 | C12: Put | D12: 23900 | E12: 57.1 | F12: -32.66509434
A13: NIFTY | B13: 2026-04-13 | C13: Put | D13: 23500 | E13: 0.05 | F13: -99.78213508
A14: NIFTY | B14: 2026-04-13 | C14: Put | D14: 23650 | E14: 0.05 | F14: -99.86376022
A15: NIFTY | B15: 2026-04-13 | C15: Call | D15: 23750 | E15: 92.35 | F15: -73.4282837
A16: NIFTY | B16: 2026-04-13 | C16: Call | D16: 23700 | E16: 142.35 | F16: -63.60265917
A17: NIFTY | B17: 2026-04-13 | C17: Call | D17: 24050 | E17: 0.05 | F17: -99.96478873
A18: NIFTY | B18: 2026-04-13 | C18: Put | D18: 23550 | E18: 0.05 | F18: -99.81343284
A19: NIFTY | B19: 2026-04-13 | C19: Call | D19: 24100 | E19: 0.05 | F19: -99.95746491
A20: NIFTY | B20: 2026-04-13 | C20: Put | D20: 23400 | E20: 0.05 | F20: -99.6978852
A21: NIFTY | B21: 2026-04-13 | C21: Call | D21: 23600 | E21: 242.5 | F21: -49.54223887

Sheet ostock (hidden)

Sheet Slide-in-OI-Slide (hidden)
A1: symbol | B1: expiryDate | C1: optionType | D1: strikePrice | E1: lastPrice | F1: pChange | G1: pChangeInOI | H1: Trend
A2: TCS | B2: 2026-04-28 | C2: Put | D2: 2500 | E2: 77.95 | F2: 50.05 | G2: -21.75 | H2: Slide-in-OI-Slide in price
A3: TCS | B3: 2026-04-28 | C3: Put | D3: 2520 | E3: 91.45 | F3: 47.98 | G3: -40.88 | H3: Slide-in-OI-Slide in price
A4: TATAPOWER | B4: 2026-04-28 | C4: Call | D4: 400 | E4: 16.25 | F4: 74.73 | G4: -29.55 | H4: Slide-in-OI-Slide in price
A5: PIIND | B5: 2026-04-28 | C5: Put | D5: 2700 | E5: 17.15 | F5: 3.94 | G5: -69.13 | H5: Slide-in-OI-Slide in price

Sheet OIG (hidden)
A1: symbol | B1: latestOI | C1: prevOI | D1: changeInOI | E1: avgInOI | F1: volume | H1: Rank
A2: NIFTY | B2: 10366733 | C2: 7744217 | D2: 2622516 | E2: 33.86 | F2: 375739763 | H2: =IFERROR( RANK(F2,$F$2:$F$500,0)+COUNTIF($F$2:F2,F2)-1, "") -> 1 | I2: =IFERROR( IF(AND(H2<>"", A2<>"NIFTY", A2<>"BANKNIFTY", A2<>"MIDCPNIFTY", A2<>"FINNIFTY" ), H2, ""), "") ->  | J2: =IFERROR( IF(AND(I2<>"", A2<>"NIFTY", A2<>"BANKNIFTY", A2<>"MIDCPNIFTY", A2<>"FINNIFTY" ), A2, ""), "") ->  | T2: =SMALL(I:I,1) -> 3 | U2: =VLOOKUP(T2,H:J,3,FALSE) -> RELIANCE | V2: =VLOOKUP(U2,A:D,4,FALSE) -> 17633 | W2: =VLOOKUP(U2,A:F,6,FALSE) -> 274025
A3: ADANIPOWER | B3: 29207 | C3: 22680 | D3: 6527 | E3: 28.78 | F3: 52419 | H3: =IFERROR( RANK(F3,$F$2:$F$500,0)+COUNTIF($F$2:F3,F3)-1, "") -> 38 | I3: =IFERROR( IF(AND(H3<>"", A3<>"NIFTY", A3<>"BANKNIFTY", A3<>"MIDCPNIFTY", A3<>"FINNIFTY" ), H3, ""), "") -> 38 | J3: =IFERROR( IF(AND(I3<>"", A3<>"NIFTY", A3<>"BANKNIFTY", A3<>"MIDCPNIFTY", A3<>"FINNIFTY" ), A3, ""), "") -> ADANIPOWER | T3: =SMALL(I:I,2) -> 4 | U3: =VLOOKUP(T3,H:J,3,FALSE) -> HDFCBANK | V3: =VLOOKUP(U3,A:D,4,FALSE) -> 19894 | W3: =VLOOKUP(U3,A:F,6,FALSE) -> 239919
A4: FINNIFTY | B4: 7243 | C4: 5797 | D4: 1446 | E4: 24.94 | F4: 12079 | H4: =IFERROR( RANK(F4,$F$2:$F$500,0)+COUNTIF($F$2:F4,F4)-1, "") -> 136 | I4: =IFERROR( IF(AND(H4<>"", A4<>"NIFTY", A4<>"BANKNIFTY", A4<>"MIDCPNIFTY", A4<>"FINNIFTY" ), H4, ""), "") ->  | T4: =SMALL(I:I,3) -> 5 | U4: TCS | V4: 14969 | W4: 237901
A5: ICICIPRULI | B5: 30481 | C5: 24429 | D5: 6052 | E5: 24.77 | F5: 21132 | H5: =IFERROR( RANK(F5,$F$2:$F$500,0)+COUNTIF($F$2:F5,F5)-1, "") -> 91 | I5: 91 | J5: ICICIPRULI | T5: =SMALL(I:I,4) -> 6 | U5: SBIN | V5: 534 | W5: 164411
A6: HYUNDAI | B6: 30557 | C6: 24859 | D6: 5698 | E6: 22.92 | F6: 14865 | H6: =IFERROR( RANK(F6,$F$2:$F$500,0)+COUNTIF($F$2:F6,F6)-1, "") -> 121 | I6: 121 | J6: HYUNDAI | T6: =SMALL(I:I,5) -> 7 | U6: MARUTI | V6: 17052 | W6: 160015
A7: HEROMOTOCO | B7: 51508 | C7: 42033 | D7: 9475 | E7: 22.54 | F7: 52404 | H7: =IFERROR( RANK(F7,$F$2:$F$500,0)+COUNTIF($F$2:F7,F7)-1, "") -> 39 | I7: 39 | J7: HEROMOTOCO | T7: =SMALL(I:I,6) -> 8 | U7: TATAPOWER | V7: 4472 | W7: 155646
A8: AMBER | B8: 26659 | C8: 22069 | D8: 4590 | E8: 20.8 | F8: 35167 | H8: =IFERROR( RANK(F8,$F$2:$F$500,0)+COUNTIF($F$2:F8,F8)-1, "") -> 57 | I8: 57 | J8: AMBER | T8: =SMALL(I:I,7) -> 9 | U8: ICICIBANK | V8: 19502 | W8: 153753
A9: WAAREEENER | B9: 46185 | C9: 39980 | D9: 6205 | E9: 15.52 | F9: 92118 | H9: =IFERROR( RANK(F9,$F$2:$F$500,0)+COUNTIF($F$2:F9,F9)-1, "") -> 15 | I9: 15 | J9: WAAREEENER | T9: =SMALL(I:I,8) -> 11 | U9: NTPC | V9: 7027 | W9: 116549
A10: MARUTI | B10: 134112 | C10: 117060 | D10: 17052 | E10: 14.57 | F10: 160015 | H10: =IFERROR( RANK(F10,$F$2:$F$500,0)+COUNTIF($F$2:F10,F10)-1, "") -> 7 | I10: 7 | J10: MARUTI | T10: =SMALL(I:I,9) -> 12 | U10: LT | V10: 10354 | W10: 113721
A11: SBILIFE | B11: 39164 | C11: 34581 | D11: 4583 | E11: 13.25 | F11: 14127 | H11: =IFERROR( RANK(F11,$F$2:$F$500,0)+COUNTIF($F$2:F11,F11)-1, "") -> 125 | I11: 125 | J11: SBILIFE | T11: =SMALL(I:I,10) -> 13 | U11: ADANIENT | V11: 4707 | W11: 104522
A12: APLAPOLLO | B12: 20583 | C12: 18176 | D12: 2407 | E12: 13.24 | F12: 12066 | H12: =IFERROR( RANK(F12,$F$2:$F$500,0)+COUNTIF($F$2:F12,F12)-1, "") -> 137 | I12: 137 | J12: APLAPOLLO
A13: FORCEMOT | B13: 6577 | C13: 5850 | D13: 727 | E13: 12.43 | F13: 5759 | H13: =IFERROR( RANK(F13,$F$2:$F$500,0)+COUNTIF($F$2:F13,F13)-1, "") -> 192 | I13: 192 | J13: FORCEMOT
A14: BHEL | B14: 65976 | C14: 58903 | D14: 7073 | E14: 12.01 | F14: 74305 | H14: =IFERROR( RANK(F14,$F$2:$F$500,0)+COUNTIF($F$2:F14,F14)-1, "") -> 23 | I14: 23 | J14: BHEL
A15: EICHERMOT | B15: 78833 | C15: 70905 | D15: 7928 | E15: 11.18 | F15: 83781 | H15: =IFERROR( RANK(F15,$F$2:$F$500,0)+COUNTIF($F$2:F15,F15)-1, "") -> 19 | I15: 19 | J15: EICHERMOT
A16: GODFRYPHLP | B16: 3344 | C16: 3038 | D16: 306 | E16: 10.07 | F16: 4864 | H16: =IFERROR( RANK(F16,$F$2:$F$500,0)+COUNTIF($F$2:F16,F16)-1, "") -> 198 | I16: 198 | J16: GODFRYPHLP
A17: POLICYBZR | B17: 31235 | C17: 28385 | D17: 2850 | E17: 10.04 | F17: 11852 | H17: =IFERROR( RANK(F17,$F$2:$F$500,0)+COUNTIF($F$2:F17,F17)-1, "") -> 141 | I17: 141 | J17: POLICYBZR
A18: SONACOMS | B18: 18437 | C18: 16790 | D18: 1647 | E18: 9.81 | F18: 25400 | H18: =IFERROR( RANK(F18,$F$2:$F$500,0)+COUNTIF($F$2:F18,F18)-1, "") -> 75 | I18: 75 | J18: SONACOMS
A19: SUZLON | B19: 60511 | C19: 55519 | D19: 4992 | E19: 8.99 | F19: 56323 | H19: =IFERROR( RANK(F19,$F$2:$F$500,0)+COUNTIF($F$2:F19,F19)-1, "") -> 36 | I19: 36 | J19: SUZLON
A20: ICICIBANK | B20: 238383 | C20: 218881 | D20: 19502 | E20: 8.91 | F20: 153753 | H20: =IFERROR( RANK(F20,$F$2:$F$500,0)+COUNTIF($F$2:F20,F20)-1, "") -> 9 | I20: 9 | J20: ICICIBANK
A21: FORTIS | B21: 21140 | C21: 19417 | D21: 1723 | E21: 8.87 | F21: 10378 | H21: =IFERROR( RANK(F21,$F$2:$F$500,0)+COUNTIF($F$2:F21,F21)-1, "") -> 160 | I21: 160 | J21: FORTIS
A22: LTM | B22: 42280 | C22: 38983 | D22: 3297 | E22: 8.46 | F22: 12154 | H22: =IFERROR( RANK(F22,$F$2:$F$500,0)+COUNTIF($F$2:F22,F22)-1, "") -> 134 | I22: 134 | J22: LTM
A23: UNIONBANK | B23: 36865 | C23: 34102 | D23: 2763 | E23: 8.1 | F23: 24901 | H23: =IFERROR( RANK(F23,$F$2:$F$500,0)+COUNTIF($F$2:F23,F23)-1, "") -> 77 | I23: 77 | J23: UNIONBANK
A24: MOTILALOFS | B24: 4359 | C24: 4035 | D24: 324 | E24: 8.03 | F24: 2924 | H24: =IFERROR( RANK(F24,$F$2:$F$500,0)+COUNTIF($F$2:F24,F24)-1, "") -> 211 | I24: 211 | J24: MOTILALOFS
A25: CHOLAFIN | B25: 44960 | C25: 41659 | D25: 3301 | E25: 7.92 | F25: 20855 | H25: =IFERROR( RANK(F25,$F$2:$F$500,0)+COUNTIF($F$2:F25,F25)-1, "") -> 93 | I25: 93 | J25: CHOLAFIN
A26: MCX | B26: 43581 | C26: 40454 | D26: 3127 | E26: 7.73 | F26: 66535 | H26: =IFERROR( RANK(F26,$F$2:$F$500,0)+COUNTIF($F$2:F26,F26)-1, "") -> 27 | I26: 27 | J26: MCX
A27: NTPC | B27: 104299 | C27: 97272 | D27: 7027 | E27: 7.22 | F27: 116549 | H27: =IFERROR( RANK(F27,$F$2:$F$500,0)+COUNTIF($F$2:F27,F27)-1, "") -> 11 | I27: 11 | J27: NTPC
A28: COALINDIA | B28: 98402 | C28: 91794 | D28: 6608 | E28: 7.2 | F28: 77604 | H28: =IFERROR( RANK(F28,$F$2:$F$500,0)+COUNTIF($F$2:F28,F28)-1, "") -> 21 | I28: 21 | J28: COALINDIA
A29: BLUESTARCO | B29: 16010 | C29: 14954 | D29: 1056 | E29: 7.06 | F29: 28967 | H29: =IFERROR( RANK(F29,$F$2:$F$500,0)+COUNTIF($F$2:F29,F29)-1, "") -> 67 | I29: 67 | J29: BLUESTARCO
A30: TORNTPOWER | B30: 12176 | C30: 11374 | D30: 802 | E30: 7.05 | F30: 9469 | H30: =IFERROR( RANK(F30,$F$2:$F$500,0)+COUNTIF($F$2:F30,F30)-1, "") -> 170 | I30: 170 | J30: TORNTPOWER
A31: ASTRAL | B31: 32758 | C31: 30651 | D31: 2107 | E31: 6.87 | F31: 22243 | H31: =IFERROR( RANK(F31,$F$2:$F$500,0)+COUNTIF($F$2:F31,F31)-1, "") -> 88 | I31: 88 | J31: ASTRAL
A32: POWERGRID | B32: 68817 | C32: 64483 | D32: 4334 | E32: 6.72 | F32: 37617 | H32: =IFERROR( RANK(F32,$F$2:$F$500,0)+COUNTIF($F$2:F32,F32)-1, "") -> 52 | I32: 52 | J32: POWERGRID
A33: UNITDSPR | B33: 50302 | C33: 47351 | D33: 2951 | E33: 6.23 | F33: 12665 | H33: =IFERROR( RANK(F33,$F$2:$F$500,0)+COUNTIF($F$2:F33,F33)-1, "") -> 130 | I33: 130 | J33: UNITDSPR
A34: PIDILITIND | B34: 20856 | C34: 19637 | D34: 1219 | E34: 6.21 | F34: 5876 | H34: =IFERROR( RANK(F34,$F$2:$F$500,0)+COUNTIF($F$2:F34,F34)-1, "") -> 190 | I34: 190 | J34: PIDILITIND
A35: LT | B35: 180599 | C35: 170245 | D35: 10354 | E35: 6.08 | F35: 113721 | H35: =IFERROR( RANK(F35,$F$2:$F$500,0)+COUNTIF($F$2:F35,F35)-1, "") -> 12 | I35: 12 | J35: LT
A36: MOTHERSON | B36: 35219 | C36: 33224 | D36: 1995 | E36: 6 | F36: 17509 | H36: =IFERROR( RANK(F36,$F$2:$F$500,0)+COUNTIF($F$2:F36,F36)-1, "") -> 104 | I36: 104 | J36: MOTHERSON
A37: TATAPOWER | B37: 80775 | C37: 76303 | D37: 4472 | E37: 5.86 | F37: 155646 | H37: =IFERROR( RANK(F37,$F$2:$F$500,0)+COUNTIF($F$2:F37,F37)-1, "") -> 8 | I37: 8 | J37: TATAPOWER
A38: HDFCAMC | B38: 28078 | C38: 26553 | D38: 1525 | E38: 5.74 | F38: 10937 | H38: =IFERROR( RANK(F38,$F$2:$F$500,0)+COUNTIF($F$2:F38,F38)-1, "") -> 149 | I38: 149 | J38: HDFCAMC
A39: BAJAJ-AUTO | B39: 71076 | C39: 67225 | D39: 3851 | E39: 5.73 | F39: 69723 | H39: =IFERROR( RANK(F39,$F$2:$F$500,0)+COUNTIF($F$2:F39,F39)-1, "") -> 24 | I39: 24 | J39: BAJAJ-AUTO
A40: TORNTPHARM | B40: 17584 | C40: 16634 | D40: 950 | E40: 5.71 | F40: 10486 | H40: =IFERROR( RANK(F40,$F$2:$F$500,0)+COUNTIF($F$2:F40,F40)-1, "") -> 158 | I40: 158 | J40: TORNTPHARM
A41: ADANIGREEN | B41: 56570 | C41: 53565 | D41: 3005 | E41: 5.61 | F41: 43133 | H41: =IFERROR( RANK(F41,$F$2:$F$500,0)+COUNTIF($F$2:F41,F41)-1, "") -> 45 | I41: 45 | J41: ADANIGREEN
A42: JSWENERGY | B42: 40773 | C42: 38610 | D42: 2163 | E42: 5.6 | F42: 53111 | H42: =IFERROR( RANK(F42,$F$2:$F$500,0)+COUNTIF($F$2:F42,F42)-1, "") -> 37 | I42: 37 | J42: JSWENERGY
A43: INFY | B43: 325871 | C43: 308899 | D43: 16972 | E43: 5.49 | F43: 103091 | H43: =IFERROR( RANK(F43,$F$2:$F$500,0)+COUNTIF($F$2:F43,F43)-1, "") -> 14 | I43: 14 | J43: INFY
A44: INOXWIND | B44: 40606 | C44: 38550 | D44: 2056 | E44: 5.33 | F44: 24318 | H44: =IFERROR( RANK(F44,$F$2:$F$500,0)+COUNTIF($F$2:F44,F44)-1, "") -> 80 | I44: 80 | J44: INOXWIND
A45: IREDA | B45: 26110 | C45: 24791 | D45: 1319 | E45: 5.32 | F45: 10899 | H45: =IFERROR( RANK(F45,$F$2:$F$500,0)+COUNTIF($F$2:F45,F45)-1, "") -> 150 | I45: 150 | J45: IREDA
A46: WIPRO | B46: 127558 | C46: 121149 | D46: 6409 | E46: 5.29 | F46: 43568 | H46: =IFERROR( RANK(F46,$F$2:$F$500,0)+COUNTIF($F$2:F46,F46)-1, "") -> 44 | I46: 44 | J46: WIPRO
A47: SOLARINDS | B47: 25048 | C47: 23797 | D47: 1251 | E47: 5.26 | F47: 37478 | H47: =IFERROR( RANK(F47,$F$2:$F$500,0)+COUNTIF($F$2:F47,F47)-1, "") -> 53 | I47: 53 | J47: SOLARINDS
A48: KOTAKBANK | B48: 140044 | C48: 133114 | D48: 6930 | E48: 5.21 | F48: 38770 | H48: =IFERROR( RANK(F48,$F$2:$F$500,0)+COUNTIF($F$2:F48,F48)-1, "") -> 51 | I48: 51 | J48: KOTAKBANK
A49: ADANIENT | B49: 96566 | C49: 91859 | D49: 4707 | E49: 5.12 | F49: 104522 | H49: =IFERROR( RANK(F49,$F$2:$F$500,0)+COUNTIF($F$2:F49,F49)-1, "") -> 13 | I49: 13 | J49: ADANIENT
A50: LICI | B50: 25448 | C50: 24251 | D50: 1197 | E50: 4.94 | F50: 11888 | H50: =IFERROR( RANK(F50,$F$2:$F$500,0)+COUNTIF($F$2:F50,F50)-1, "") -> 140 | I50: 140 | J50: LICI
A51: INDIGO | B51: 114243 | C51: 108880 | D51: 5363 | E51: 4.93 | F51: 92098 | H51: =IFERROR( RANK(F51,$F$2:$F$500,0)+COUNTIF($F$2:F51,F51)-1, "") -> 16 | I51: 16 | J51: INDIGO
A52: ABB | B52: 32309 | C52: 30796 | D52: 1513 | E52: 4.91 | F52: 29870 | H52: =IFERROR( RANK(F52,$F$2:$F$500,0)+COUNTIF($F$2:F52,F52)-1, "") -> 66 | I52: 66 | J52: ABB
A53: POWERINDIA | B53: 16626 | C53: 15859 | D53: 767 | E53: 4.84 | F53: 22455 | H53: =IFERROR( RANK(F53,$F$2:$F$500,0)+COUNTIF($F$2:F53,F53)-1, "") -> 87 | I53: 87 | J53: POWERINDIA
A54: FEDERALBNK | B54: 27281 | C54: 26040 | D54: 1241 | E54: 4.77 | F54: 22713 | H54: =IFERROR( RANK(F54,$F$2:$F$500,0)+COUNTIF($F$2:F54,F54)-1, "") -> 84 | I54: 84 | J54: FEDERALBNK
A55: AXISBANK | B55: 157551 | C55: 150462 | D55: 7089 | E55: 4.71 | F55: 62298 | H55: =IFERROR( RANK(F55,$F$2:$F$500,0)+COUNTIF($F$2:F55,F55)-1, "") -> 31 | I55: 31 | J55: AXISBANK
A56: BSE | B56: 59379 | C56: 56730 | D56: 2649 | E56: 4.67 | F56: 83667 | H56: =IFERROR( RANK(F56,$F$2:$F$500,0)+COUNTIF($F$2:F56,F56)-1, "") -> 20 | I56: 20 | J56: BSE
A57: BPCL | B57: 46270 | C57: 44261 | D57: 2009 | E57: 4.54 | F57: 26052 | H57: =IFERROR( RANK(F57,$F$2:$F$500,0)+COUNTIF($F$2:F57,F57)-1, "") -> 72 | I57: 72 | J57: BPCL
A58: BANKNIFTY | B58: 1164532 | C58: 1114422 | D58: 50110 | E58: 4.5 | F58: 2427112 | H58: =IFERROR( RANK(F58,$F$2:$F$500,0)+COUNTIF($F$2:F58,F58)-1, "") -> 2
A59: INDIANB | B59: 15295 | C59: 14640 | D59: 655 | E59: 4.47 | F59: 10744 | H59: =IFERROR( RANK(F59,$F$2:$F$500,0)+COUNTIF($F$2:F59,F59)-1, "") -> 153 | I59: 153 | J59: INDIANB
A60: OIL | B60: 25236 | C60: 24173 | D60: 1063 | E60: 4.4 | F60: 25948 | H60: =IFERROR( RANK(F60,$F$2:$F$500,0)+COUNTIF($F$2:F60,F60)-1, "") -> 73 | I60: 73 | J60: OIL
A61: NHPC | B61: 23901 | C61: 22913 | D61: 988 | E61: 4.31 | F61: 11449 | H61: =IFERROR( RANK(F61,$F$2:$F$500,0)+COUNTIF($F$2:F61,F61)-1, "") -> 147 | I61: 147 | J61: NHPC
A62: RELIANCE | B62: 429450 | C62: 411817 | D62: 17633 | E62: 4.28 | F62: 274025 | H62: =IFERROR( RANK(F62,$F$2:$F$500,0)+COUNTIF($F$2:F62,F62)-1, "") -> 3 | I62: 3 | J62: RELIANCE
A63: OBEROIRLTY | B63: 34142 | C63: 32779 | D63: 1363 | E63: 4.16 | F63: 9600 | H63: =IFERROR( RANK(F63,$F$2:$F$500,0)+COUNTIF($F$2:F63,F63)-1, "") -> 168 | I63: 168 | J63: OBEROIRLTY
A64: JINDALSTEL | B64: 30486 | C64: 29289 | D64: 1197 | E64: 4.09 | F64: 13428 | H64: =IFERROR( RANK(F64,$F$2:$F$500,0)+COUNTIF($F$2:F64,F64)-1, "") -> 128 | I64: 128 | J64: JINDALSTEL
A65: HDFCLIFE | B65: 59470 | C65: 57161 | D65: 2309 | E65: 4.04 | F65: 45262 | H65: =IFERROR( RANK(F65,$F$2:$F$500,0)+COUNTIF($F$2:F65,F65)-1, "") -> 42 | I65: 42 | J65: HDFCLIFE
A66: ASIANPAINT | B66: 96716 | C66: 92988 | D66: 3728 | E66: 4.01 | F66: 65239 | H66: =IFERROR( RANK(F66,$F$2:$F$500,0)+COUNTIF($F$2:F66,F66)-1, "") -> 29 | I66: 29 | J66: ASIANPAINT
A67: NUVAMA | B67: 6893 | C67: 6628 | D67: 265 | E67: 4 | F67: 3789 | H67: =IFERROR( RANK(F67,$F$2:$F$500,0)+COUNTIF($F$2:F67,F67)-1, "") -> 204 | I67: 204 | J67: =IFERROR( IF(AND(I67<>"", A67<>"NIFTY", A67<>"BANKNIFTY", A67<>"MIDCPNIFTY", A67<>"FINNIFTY" ), A67, ""), "") -> NUVAMA
A68: ADANIENSOL | B68: 40659 | C68: 39109 | D68: 1550 | E68: 3.96 | F68: 37031 | H68: =IFERROR( RANK(F68,$F$2:$F$500,0)+COUNTIF($F$2:F68,F68)-1, "") -> 55 | I68: =IFERROR( IF(AND(H68<>"", A68<>"NIFTY", A68<>"BANKNIFTY", A68<>"MIDCPNIFTY", A68<>"FINNIFTY" ), H68, ""), "") -> 55 | J68: ADANIENSOL
A69: TCS | B69: 403156 | C69: 388187 | D69: 14969 | E69: 3.86 | F69: 237901 | H69: =IFERROR( RANK(F69,$F$2:$F$500,0)+COUNTIF($F$2:F69,F69)-1, "") -> 5 | I69: 5 | J69: TCS
A70: EXIDEIND | B70: 31498 | C70: 30348 | D70: 1150 | E70: 3.79 | F70: 16279 | H70: =IFERROR( RANK(F70,$F$2:$F$500,0)+COUNTIF($F$2:F70,F70)-1, "") -> 113 | I70: 113 | J70: EXIDEIND
A71: SWIGGY | B71: 50693 | C71: 48860 | D71: 1833 | E71: 3.75 | F71: 16580 | H71: =IFERROR( RANK(F71,$F$2:$F$500,0)+COUNTIF($F$2:F71,F71)-1, "") -> 109 | I71: 109 | J71: SWIGGY
A72: BAJFINANCE | B72: 145376 | C72: 140129 | D72: 5247 | E72: 3.74 | F72: 47997 | H72: =IFERROR( RANK(F72,$F$2:$F$500,0)+COUNTIF($F$2:F72,F72)-1, "") -> 40 | I72: 40 | J72: BAJFINANCE
A73: HINDPETRO | B73: 39172 | C73: 37764 | D73: 1408 | E73: 3.73 | F73: 22479 | H73: =IFERROR( RANK(F73,$F$2:$F$500,0)+COUNTIF($F$2:F73,F73)-1, "") -> 86 | I73: 86 | J73: HINDPETRO
A74: PRESTIGE | B74: 22708 | C74: 21893 | D74: 815 | E74: 3.72 | F74: 7837 | H74: =IFERROR( RANK(F74,$F$2:$F$500,0)+COUNTIF($F$2:F74,F74)-1, "") -> 175 | I74: 175 | J74: PRESTIGE
A75: BAJAJHLDNG | B75: 7717 | C75: 7441 | D75: 276 | E75: 3.71 | F75: 1632 | H75: =IFERROR( RANK(F75,$F$2:$F$500,0)+COUNTIF($F$2:F75,F75)-1, "") -> 215 | I75: 215 | J75: BAJAJHLDNG
A76: INDUSTOWER | B76: 53539 | C76: 51651 | D76: 1888 | E76: 3.66 | F76: 14163 | H76: =IFERROR( RANK(F76,$F$2:$F$500,0)+COUNTIF($F$2:F76,F76)-1, "") -> 124 | I76: 124 | J76: INDUSTOWER
A77: PGEL | B77: 35324 | C77: 34080 | D77: 1244 | E77: 3.65 | F77: 26065 | H77: =IFERROR( RANK(F77,$F$2:$F$500,0)+COUNTIF($F$2:F77,F77)-1, "") -> 71 | I77: 71 | J77: PGEL
A78: KEI | B78: 18524 | C78: 17876 | D78: 648 | E78: 3.62 | F78: 8146 | H78: =IFERROR( RANK(F78,$F$2:$F$500,0)+COUNTIF($F$2:F78,F78)-1, "") -> 174 | I78: 174 | J78: KEI
A79: DABUR | B79: 38158 | C79: 36837 | D79: 1321 | E79: 3.59 | F79: 12055 | H79: =IFERROR( RANK(F79,$F$2:$F$500,0)+COUNTIF($F$2:F79,F79)-1, "") -> 138 | I79: 138 | J79: DABUR
A80: DLF | B80: 93043 | C80: 89841 | D80: 3202 | E80: 3.56 | F80: 27595 | H80: =IFERROR( RANK(F80,$F$2:$F$500,0)+COUNTIF($F$2:F80,F80)-1, "") -> 70 | I80: 70 | J80: DLF
A81: 360ONE | B81: 14071 | C81: 13600 | D81: 471 | E81: 3.46 | F81: 3718 | H81: =IFERROR( RANK(F81,$F$2:$F$500,0)+COUNTIF($F$2:F81,F81)-1, "") -> 205 | I81: 205 | J81: 360ONE
A82: BANKINDIA | B82: 19377 | C82: 18733 | D82: 644 | E82: 3.44 | F82: 9887 | H82: =IFERROR( RANK(F82,$F$2:$F$500,0)+COUNTIF($F$2:F82,F82)-1, "") -> 166 | I82: 166 | J82: BANKINDIA
A83: CIPLA | B83: 62066 | C83: 60053 | D83: 2013 | E83: 3.35 | F83: 16331 | H83: =IFERROR( RANK(F83,$F$2:$F$500,0)+COUNTIF($F$2:F83,F83)-1, "") -> 112 | I83: 112 | J83: CIPLA
A84: NESTLEIND | B84: 46186 | C84: 44712 | D84: 1474 | E84: 3.3 | F84: 12141 | H84: =IFERROR( RANK(F84,$F$2:$F$500,0)+COUNTIF($F$2:F84,F84)-1, "") -> 135 | I84: 135 | J84: NESTLEIND
A85: NATIONALUM | B85: 32336 | C85: 31314 | D85: 1022 | E85: 3.26 | F85: 31592 | H85: =IFERROR( RANK(F85,$F$2:$F$500,0)+COUNTIF($F$2:F85,F85)-1, "") -> 62 | I85: 62 | J85: NATIONALUM
A86: IOC | B86: 44977 | C86: 43566 | D86: 1411 | E86: 3.24 | F86: 21232 | H86: =IFERROR( RANK(F86,$F$2:$F$500,0)+COUNTIF($F$2:F86,F86)-1, "") -> 90 | I86: 90 | J86: IOC
A87: NAM-INDIA | B87: 5000 | C87: 4846 | D87: 154 | E87: 3.18 | F87: 5959 | H87: =IFERROR( RANK(F87,$F$2:$F$500,0)+COUNTIF($F$2:F87,F87)-1, "") -> 188 | I87: 188 | J87: NAM-INDIA
A88: KPITTECH | B88: 28998 | C88: 28111 | D88: 887 | E88: 3.16 | F88: 10629 | H88: =IFERROR( RANK(F88,$F$2:$F$500,0)+COUNTIF($F$2:F88,F88)-1, "") -> 155 | I88: 155 | J88: KPITTECH
A89: NMDC | B89: 67361 | C89: 65306 | D89: 2055 | E89: 3.15 | F89: 23341 | H89: =IFERROR( RANK(F89,$F$2:$F$500,0)+COUNTIF($F$2:F89,F89)-1, "") -> 82 | I89: 82 | J89: NMDC
A90: INDHOTEL | B90: 33483 | C90: 32473 | D90: 1010 | E90: 3.11 | F90: 10211 | H90: =IFERROR( RANK(F90,$F$2:$F$500,0)+COUNTIF($F$2:F90,F90)-1, "") -> 161 | I90: 161 | J90: INDHOTEL
A91: BIOCON | B91: 29942 | C91: 29039 | D91: 903 | E91: 3.11 | F91: 12048 | H91: =IFERROR( RANK(F91,$F$2:$F$500,0)+COUNTIF($F$2:F91,F91)-1, "") -> 139 | I91: 139 | J91: BIOCON
A92: SBICARD | B92: 46181 | C92: 44796 | D92: 1385 | E92: 3.09 | F92: 13382 | H92: =IFERROR( RANK(F92,$F$2:$F$500,0)+COUNTIF($F$2:F92,F92)-1, "") -> 129 | I92: 129 | J92: SBICARD
A93: ONGC | B93: 96386 | C93: 93520 | D93: 2866 | E93: 3.06 | F93: 75360 | H93: =IFERROR( RANK(F93,$F$2:$F$500,0)+COUNTIF($F$2:F93,F93)-1, "") -> 22 | I93: 22 | J93: ONGC
A94: CGPOWER | B94: 29328 | C94: 28461 | D94: 867 | E94: 3.05 | F94: 10542 | H94: =IFERROR( RANK(F94,$F$2:$F$500,0)+COUNTIF($F$2:F94,F94)-1, "") -> 156 | I94: 156 | J94: CGPOWER
A95: COCHINSHIP | B95: 7364 | C95: 7150 | D95: 214 | E95: 2.99 | F95: 5324 | H95: =IFERROR( RANK(F95,$F$2:$F$500,0)+COUNTIF($F$2:F95,F95)-1, "") -> 196 | I95: 196 | J95: COCHINSHIP
A96: RVNL | B96: 54317 | C96: 52746 | D96: 1571 | E96: 2.98 | F96: 14883 | H96: =IFERROR( RANK(F96,$F$2:$F$500,0)+COUNTIF($F$2:F96,F96)-1, "") -> 120 | I96: 120 | J96: RVNL
A97: HAVELLS | B97: 24571 | C97: 23863 | D97: 708 | E97: 2.97 | F97: 7358 | H97: =IFERROR( RANK(F97,$F$2:$F$500,0)+COUNTIF($F$2:F97,F97)-1, "") -> 178 | I97: 178 | J97: HAVELLS
A98: HCLTECH | B98: 138620 | C98: 134637 | D98: 3983 | E98: 2.96 | F98: 31189 | H98: =IFERROR( RANK(F98,$F$2:$F$500,0)+COUNTIF($F$2:F98,F98)-1, "") -> 63 | I98: 63 | J98: HCLTECH
A99: VBL | B99: 59374 | C99: 57680 | D99: 1694 | E99: 2.94 | F99: 19961 | H99: =IFERROR( RANK(F99,$F$2:$F$500,0)+COUNTIF($F$2:F99,F99)-1, "") -> 97 | I99: 97 | J99: VBL
A100: ULTRACEMCO | B100: 67265 | C100: 65363 | D100: 1902 | E100: 2.91 | F100: 18207 | H100: =IFERROR( RANK(F100,$F$2:$F$500,0)+COUNTIF($F$2:F100,F100)-1, "") -> 103 | I100: 103 | J100: ULTRACEMCO
A101: GODREJCP | B101: 30559 | C101: 29737 | D101: 822 | E101: 2.76 | F101: 5865 | H101: =IFERROR( RANK(F101,$F$2:$F$500,0)+COUNTIF($F$2:F101,F101)-1, "") -> 191 | I101: 191 | J101: GODREJCP
A102: ICICIGI | B102: 21812 | C102: 21228 | D102: 584 | E102: 2.75 | F102: 5993 | H102: =IFERROR( RANK(F102,$F$2:$F$500,0)+COUNTIF($F$2:F102,F102)-1, "") -> 187 | I102: 187 | J102: ICICIGI
A103: PERSISTENT | B103: 75599 | C103: 73588 | D103: 2011 | E103: 2.73 | F103: 20260 | H103: =IFERROR( RANK(F103,$F$2:$F$500,0)+COUNTIF($F$2:F103,F103)-1, "") -> 95 | I103: 95 | J103: PERSISTENT
A104: TRENT | B104: 127785 | C104: 124424 | D104: 3361 | E104: 2.7 | F104: 31013 | H104: =IFERROR( RANK(F104,$F$2:$F$500,0)+COUNTIF($F$2:F104,F104)-1, "") -> 65 | I104: 65 | J104: TRENT
A105: SHRIRAMFIN | B105: 80290 | C105: 78231 | D105: 2059 | E105: 2.63 | F105: 35421 | H105: =IFERROR( RANK(F105,$F$2:$F$500,0)+COUNTIF($F$2:F105,F105)-1, "") -> 56 | I105: 56 | J105: SHRIRAMFIN
A106: AUROPHARMA | B106: 51296 | C106: 49981 | D106: 1315 | E106: 2.63 | F106: 11688 | H106: =IFERROR( RANK(F106,$F$2:$F$500,0)+COUNTIF($F$2:F106,F106)-1, "") -> 143 | I106: 143 | J106: AUROPHARMA
A107: GMRAIRPORT | B107: 28591 | C107: 27880 | D107: 711 | E107: 2.55 | F107: 7349 | H107: =IFERROR( RANK(F107,$F$2:$F$500,0)+COUNTIF($F$2:F107,F107)-1, "") -> 179 | I107: 179 | J107: GMRAIRPORT
A108: JIOFIN | B108: 98393 | C108: 95975 | D108: 2418 | E108: 2.52 | F108: 22526 | H108: =IFERROR( RANK(F108,$F$2:$F$500,0)+COUNTIF($F$2:F108,F108)-1, "") -> 85 | I108: 85 | J108: JIOFIN
A109: MUTHOOTFIN | B109: 25085 | C109: 24474 | D109: 611 | E109: 2.5 | F109: 16568 | H109: =IFERROR( RANK(F109,$F$2:$F$500,0)+COUNTIF($F$2:F109,F109)-1, "") -> 110 | I109: 110 | J109: MUTHOOTFIN
A110: LUPIN | B110: 24497 | C110: 23901 | D110: 596 | E110: 2.49 | F110: 12271 | H110: =IFERROR( RANK(F110,$F$2:$F$500,0)+COUNTIF($F$2:F110,F110)-1, "") -> 133 | I110: 133 | J110: LUPIN
A111: ETERNAL | B111: 128582 | C111: 125474 | D111: 3108 | E111: 2.48 | F111: 41418 | H111: =IFERROR( RANK(F111,$F$2:$F$500,0)+COUNTIF($F$2:F111,F111)-1, "") -> 47 | I111: 47 | J111: ETERNAL
A112: ANGELONE | B112: 20344 | C112: 19857 | D112: 487 | E112: 2.45 | F112: 14558 | H112: =IFERROR( RANK(F112,$F$2:$F$500,0)+COUNTIF($F$2:F112,F112)-1, "") -> 122 | I112: 122 | J112: ANGELONE
A113: HDFCBANK | B113: 832419 | C113: 812525 | D113: 19894 | E113: 2.45 | F113: 239919 | H113: =IFERROR( RANK(F113,$F$2:$F$500,0)+COUNTIF($F$2:F113,F113)-1, "") -> 4 | I113: 4 | J113: HDFCBANK
A114: TECHM | B114: 47057 | C114: 45955 | D114: 1102 | E114: 2.4 | F114: 12592 | H114: =IFERROR( RANK(F114,$F$2:$F$500,0)+COUNTIF($F$2:F114,F114)-1, "") -> 131 | I114: 131 | J114: TECHM
A115: CANBK | B115: 49222 | C115: 48074 | D115: 1148 | E115: 2.39 | F115: 21586 | H115: =IFERROR( RANK(F115,$F$2:$F$500,0)+COUNTIF($F$2:F115,F115)-1, "") -> 89 | I115: 89 | J115: CANBK
A116: PREMIERENE | B116: 25363 | C116: 24790 | D116: 573 | E116: 2.31 | F116: 15354 | H116: =IFERROR( RANK(F116,$F$2:$F$500,0)+COUNTIF($F$2:F116,F116)-1, "") -> 118 | I116: 118 | J116: PREMIERENE
A117: ZYDUSLIFE | B117: 15419 | C117: 15071 | D117: 348 | E117: 2.31 | F117: 9896 | H117: =IFERROR( RANK(F117,$F$2:$F$500,0)+COUNTIF($F$2:F117,F117)-1, "") -> 165 | I117: 165 | J117: ZYDUSLIFE
A118: HINDALCO | B118: 88664 | C118: 86682 | D118: 1982 | E118: 2.29 | F118: 57015 | H118: =IFERROR( RANK(F118,$F$2:$F$500,0)+COUNTIF($F$2:F118,F118)-1, "") -> 33 | I118: 33 | J118: HINDALCO
A119: BEL | B119: 121057 | C119: 118353 | D119: 2704 | E119: 2.28 | F119: 56833 | H119: =IFERROR( RANK(F119,$F$2:$F$500,0)+COUNTIF($F$2:F119,F119)-1, "") -> 34 | I119: 34 | J119: BEL
A120: MANAPPURAM | B120: 25795 | C120: 25219 | D120: 576 | E120: 2.28 | F120: 5494 | H120: =IFERROR( RANK(F120,$F$2:$F$500,0)+COUNTIF($F$2:F120,F120)-1, "") -> 195 | I120: 195 | J120: MANAPPURAM
A121: GAIL | B121: 44672 | C121: 43680 | D121: 992 | E121: 2.27 | F121: 10126 | H121: =IFERROR( RANK(F121,$F$2:$F$500,0)+COUNTIF($F$2:F121,F121)-1, "") -> 162 | I121: 162 | J121: GAIL
A122: PFC | B122: 72349 | C122: 70744 | D122: 1605 | E122: 2.27 | F122: 34336 | H122: =IFERROR( RANK(F122,$F$2:$F$500,0)+COUNTIF($F$2:F122,F122)-1, "") -> 58 | I122: 58 | J122: PFC
A123: DALBHARAT | B123: 13731 | C123: 13427 | D123: 304 | E123: 2.26 | F123: 7473 | H123: =IFERROR( RANK(F123,$F$2:$F$500,0)+COUNTIF($F$2:F123,F123)-1, "") -> 177 | I123: 177 | J123: DALBHARAT
A124: VMM | B124: 6239 | C124: 6102 | D124: 137 | E124: 2.25 | F124: 1971 | H124: =IFERROR( RANK(F124,$F$2:$F$500,0)+COUNTIF($F$2:F124,F124)-1, "") -> 213 | I124: 213 | J124: VMM
A125: MIDCPNIFTY | B125: 102330 | C125: 100085 | D125: 2245 | E125: 2.24 | F125: 139488 | H125: =IFERROR( RANK(F125,$F$2:$F$500,0)+COUNTIF($F$2:F125,F125)-1, "") -> 10
A126: UNOMINDA | B126: 12740 | C126: 12465 | D126: 275 | E126: 2.21 | F126: 3377 | H126: =IFERROR( RANK(F126,$F$2:$F$500,0)+COUNTIF($F$2:F126,F126)-1, "") -> 206 | I126: 206 | J126: UNOMINDA
A127: HUDCO | B127: 16519 | C127: 16164 | D127: 355 | E127: 2.2 | F127: 11677 | H127: =IFERROR( RANK(F127,$F$2:$F$500,0)+COUNTIF($F$2:F127,F127)-1, "") -> 144 | I127: 144 | J127: HUDCO
A128: ITC | B128: 191438 | C128: 187335 | D128: 4103 | E128: 2.19 | F128: 69697 | H128: =IFERROR( RANK(F128,$F$2:$F$500,0)+COUNTIF($F$2:F128,F128)-1, "") -> 25 | I128: 25 | J128: ITC
A129: MANKIND | B129: 16155 | C129: 15824 | D129: 331 | E129: 2.09 | F129: 4479 | H129: =IFERROR( RANK(F129,$F$2:$F$500,0)+COUNTIF($F$2:F129,F129)-1, "") -> 200 | I129: 200 | J129: MANKIND
A130: JUBLFOOD | B130: 53954 | C130: 52864 | D130: 1090 | E130: 2.06 | F130: 16006 | H130: =IFERROR( RANK(F130,$F$2:$F$500,0)+COUNTIF($F$2:F130,F130)-1, "") -> 114 | I130: 114 | J130: JUBLFOOD
A131: ALKEM | B131: 11892 | C131: 11652 | D131: 240 | E131: 2.06 | F131: 2988 | H131: =IFERROR( RANK(F131,$F$2:$F$500,0)+COUNTIF($F$2:F131,F131)-1, "") -> 208 | I131: 208 | J131: =IFERROR( IF(AND(I131<>"", A131<>"NIFTY", A131<>"BANKNIFTY", A131<>"MIDCPNIFTY", A131<>"FINNIFTY" ), A131, ""), "") -> ALKEM
A132: DIXON | B132: 128111 | C132: 125564 | D132: 2547 | E132: 2.03 | F132: 65984 | H132: =IFERROR( RANK(F132,$F$2:$F$500,0)+COUNTIF($F$2:F132,F132)-1, "") -> 28 | I132: =IFERROR( IF(AND(H132<>"", A132<>"NIFTY", A132<>"BANKNIFTY", A132<>"MIDCPNIFTY", A132<>"FINNIFTY" ), H132, ""), "") -> 28 | J132: DIXON
A133: HINDUNILVR | B133: 88514 | C133: 86817 | D133: 1697 | E133: 1.95 | F133: 38886 | H133: =IFERROR( RANK(F133,$F$2:$F$500,0)+COUNTIF($F$2:F133,F133)-1, "") -> 50 | I133: 50 | J133: HINDUNILVR
A134: LTF | B134: 39827 | C134: 39081 | D134: 746 | E134: 1.91 | F134: 14119 | H134: =IFERROR( RANK(F134,$F$2:$F$500,0)+COUNTIF($F$2:F134,F134)-1, "") -> 126 | I134: 126 | J134: LTF
A135: TATACONSUM | B135: 31803 | C135: 31218 | D135: 585 | E135: 1.87 | F135: 5882 | H135: =IFERROR( RANK(F135,$F$2:$F$500,0)+COUNTIF($F$2:F135,F135)-1, "") -> 189 | I135: 189 | J135: TATACONSUM
A136: TMPV | B136: 137496 | C136: 134988 | D136: 2508 | E136: 1.86 | F136: 89049 | H136: =IFERROR( RANK(F136,$F$2:$F$500,0)+COUNTIF($F$2:F136,F136)-1, "") -> 17 | I136: 17 | J136: TMPV
A137: ASHOKLEY | B137: 57886 | C137: 56867 | D137: 1019 | E137: 1.79 | F137: 41613 | H137: =IFERROR( RANK(F137,$F$2:$F$500,0)+COUNTIF($F$2:F137,F137)-1, "") -> 46 | I137: 46 | J137: ASHOKLEY
A138: IEX | B138: 36789 | C138: 36159 | D138: 630 | E138: 1.74 | F138: 11596 | H138: =IFERROR( RANK(F138,$F$2:$F$500,0)+COUNTIF($F$2:F138,F138)-1, "") -> 146 | I138: 146 | J138: IEX
A139: PETRONET | B139: 32044 | C139: 31497 | D139: 547 | E139: 1.74 | F139: 10096 | H139: =IFERROR( RANK(F139,$F$2:$F$500,0)+COUNTIF($F$2:F139,F139)-1, "") -> 163 | I139: 163 | J139: PETRONET
A140: GODREJPROP | B140: 48777 | C140: 47967 | D140: 810 | E140: 1.69 | F140: 17080 | H140: =IFERROR( RANK(F140,$F$2:$F$500,0)+COUNTIF($F$2:F140,F140)-1, "") -> 107 | I140: 107 | J140: GODREJPROP
A141: CONCOR | B141: 28996 | C141: 28526 | D141: 470 | E141: 1.65 | F141: 5733 | H141: =IFERROR( RANK(F141,$F$2:$F$500,0)+COUNTIF($F$2:F141,F141)-1, "") -> 193 | I141: 193 | J141: CONCOR
A142: CDSL | B142: 42012 | C142: 41343 | D142: 669 | E142: 1.62 | F142: 23920 | H142: =IFERROR( RANK(F142,$F$2:$F$500,0)+COUNTIF($F$2:F142,F142)-1, "") -> 81 | I142: 81 | J142: CDSL
A143: TATATECH | B143: 13639 | C143: 13422 | D143: 217 | E143: 1.62 | F143: 2768 | H143: =IFERROR( RANK(F143,$F$2:$F$500,0)+COUNTIF($F$2:F143,F143)-1, "") -> 212 | I143: 212 | J143: TATATECH
A144: DELHIVERY | B144: 20194 | C144: 19878 | D144: 316 | E144: 1.59 | F144: 6368 | H144: =IFERROR( RANK(F144,$F$2:$F$500,0)+COUNTIF($F$2:F144,F144)-1, "") -> 184 | I144: 184 | J144: DELHIVERY
A145: BAJAJFINSV | B145: 73850 | C145: 72735 | D145: 1115 | E145: 1.53 | F145: 19400 | H145: =IFERROR( RANK(F145,$F$2:$F$500,0)+COUNTIF($F$2:F145,F145)-1, "") -> 100 | I145: 100 | J145: BAJAJFINSV
A146: MAZDOCK | B146: 50209 | C146: 49459 | D146: 750 | E146: 1.52 | F146: 45750 | H146: =IFERROR( RANK(F146,$F$2:$F$500,0)+COUNTIF($F$2:F146,F146)-1, "") -> 41 | I146: 41 | J146: MAZDOCK
A147: ABCAPITAL | B147: 20018 | C147: 19723 | D147: 295 | E147: 1.5 | F147: 7708 | H147: =IFERROR( RANK(F147,$F$2:$F$500,0)+COUNTIF($F$2:F147,F147)-1, "") -> 176 | I147: 176 | J147: ABCAPITAL
A148: BHARATFORG | B148: 25867 | C148: 25496 | D148: 371 | E148: 1.46 | F148: 17119 | H148: =IFERROR( RANK(F148,$F$2:$F$500,0)+COUNTIF($F$2:F148,F148)-1, "") -> 106 | I148: 106 | J148: BHARATFORG
A149: SUPREMEIND | B149: 17060 | C149: 16828 | D149: 232 | E149: 1.38 | F149: 5627 | H149: =IFERROR( RANK(F149,$F$2:$F$500,0)+COUNTIF($F$2:F149,F149)-1, "") -> 194 | I149: 194 | J149: SUPREMEIND
A150: TATASTEEL | B150: 69424 | C150: 68493 | D150: 931 | E150: 1.36 | F150: 39695 | H150: =IFERROR( RANK(F150,$F$2:$F$500,0)+COUNTIF($F$2:F150,F150)-1, "") -> 49 | I150: 49 | J150: TATASTEEL
A151: UPL | B151: 34232 | C151: 33779 | D151: 453 | E151: 1.34 | F151: 10849 | H151: =IFERROR( RANK(F151,$F$2:$F$500,0)+COUNTIF($F$2:F151,F151)-1, "") -> 152 | I151: 152 | J151: UPL
A152: YESBANK | B152: 54472 | C152: 53756 | D152: 716 | E152: 1.33 | F152: 14960 | H152: =IFERROR( RANK(F152,$F$2:$F$500,0)+COUNTIF($F$2:F152,F152)-1, "") -> 119 | I152: 119 | J152: YESBANK
A153: MAXHEALTH | B153: 40904 | C153: 40367 | D153: 537 | E153: 1.33 | F153: 28808 | H153: =IFERROR( RANK(F153,$F$2:$F$500,0)+COUNTIF($F$2:F153,F153)-1, "") -> 68 | I153: 68 | J153: MAXHEALTH
A154: TVSMOTOR | B154: 61885 | C154: 61154 | D154: 731 | E154: 1.2 | F154: 19829 | H154: =IFERROR( RANK(F154,$F$2:$F$500,0)+COUNTIF($F$2:F154,F154)-1, "") -> 98 | I154: 98 | J154: TVSMOTOR
A155: NIFTYNXT50 | B155: 949 | C155: 938 | D155: 11 | E155: 1.17 | F155: 360 | H155: =IFERROR( RANK(F155,$F$2:$F$500,0)+COUNTIF($F$2:F155,F155)-1, "") -> 217 | I155: 217 | J155: NIFTYNXT50
A156: SRF | B156: 34354 | C156: 33957 | D156: 397 | E156: 1.17 | F156: 20066 | H156: =IFERROR( RANK(F156,$F$2:$F$500,0)+COUNTIF($F$2:F156,F156)-1, "") -> 96 | I156: 96 | J156: SRF
A157: IDFCFIRSTB | B157: 67908 | C157: 67154 | D157: 754 | E157: 1.12 | F157: 16734 | H157: =IFERROR( RANK(F157,$F$2:$F$500,0)+COUNTIF($F$2:F157,F157)-1, "") -> 108 | I157: 108 | J157: IDFCFIRSTB
A158: LODHA | B158: 75790 | C158: 74952 | D158: 838 | E158: 1.12 | F158: 32987 | H158: =IFERROR( RANK(F158,$F$2:$F$500,0)+COUNTIF($F$2:F158,F158)-1, "") -> 60 | I158: 60 | J158: LODHA
A159: APOLLOHOSP | B159: 32147 | C159: 31794 | D159: 353 | E159: 1.11 | F159: 18660 | H159: =IFERROR( RANK(F159,$F$2:$F$500,0)+COUNTIF($F$2:F159,F159)-1, "") -> 102 | I159: 102 | J159: APOLLOHOSP
A160: KFINTECH | B160: 11130 | C160: 11010 | D160: 120 | E160: 1.09 | F160: 4718 | H160: =IFERROR( RANK(F160,$F$2:$F$500,0)+COUNTIF($F$2:F160,F160)-1, "") -> 199 | I160: 199 | J160: KFINTECH
A161: TATAELXSI | B161: 28715 | C161: 28420 | D161: 295 | E161: 1.04 | F161: 10416 | H161: =IFERROR( RANK(F161,$F$2:$F$500,0)+COUNTIF($F$2:F161,F161)-1, "") -> 159 | I161: 159 | J161: TATAELXSI
A162: PATANJALI | B162: 43985 | C162: 43543 | D162: 442 | E162: 1.02 | F162: 7176 | H162: =IFERROR( RANK(F162,$F$2:$F$500,0)+COUNTIF($F$2:F162,F162)-1, "") -> 181 | I162: 181 | J162: PATANJALI
A163: GLENMARK | B163: 34751 | C163: 34410 | D163: 341 | E163: 0.99 | F163: 19385 | H163: =IFERROR( RANK(F163,$F$2:$F$500,0)+COUNTIF($F$2:F163,F163)-1, "") -> 101 | I163: 101 | J163: GLENMARK
A164: TIINDIA | B164: 16006 | C164: 15849 | D164: 157 | E164: 0.99 | F164: 1808 | H164: =IFERROR( RANK(F164,$F$2:$F$500,0)+COUNTIF($F$2:F164,F164)-1, "") -> 214 | I164: 214 | J164: TIINDIA
A165: COLPAL | B165: 40874 | C165: 40485 | D165: 389 | E165: 0.96 | F165: 10516 | H165: =IFERROR( RANK(F165,$F$2:$F$500,0)+COUNTIF($F$2:F165,F165)-1, "") -> 157 | I165: 157 | J165: COLPAL
A166: OFSS | B166: 31787 | C166: 31498 | D166: 289 | E166: 0.92 | F166: 9552 | H166: =IFERROR( RANK(F166,$F$2:$F$500,0)+COUNTIF($F$2:F166,F166)-1, "") -> 169 | I166: 169 | J166: OFSS
A167: HAL | B167: 92535 | C167: 91701 | D167: 834 | E167: 0.91 | F167: 44864 | H167: =IFERROR( RANK(F167,$F$2:$F$500,0)+COUNTIF($F$2:F167,F167)-1, "") -> 43 | I167: 43 | J167: HAL
A168: PHOENIXLTD | B168: 14387 | C168: 14261 | D168: 126 | E168: 0.88 | F168: 2938 | H168: =IFERROR( RANK(F168,$F$2:$F$500,0)+COUNTIF($F$2:F168,F168)-1, "") -> 210 | I168: 210 | J168: PHOENIXLTD
A169: M&M | B169: 137063 | C169: 135916 | D169: 1147 | E169: 0.84 | F169: 65084 | H169: =IFERROR( RANK(F169,$F$2:$F$500,0)+COUNTIF($F$2:F169,F169)-1, "") -> 30 | I169: 30 | J169: M&M
A170: RECLTD | B170: 80040 | C170: 79372 | D170: 668 | E170: 0.84 | F170: 24445 | H170: =IFERROR( RANK(F170,$F$2:$F$500,0)+COUNTIF($F$2:F170,F170)-1, "") -> 79 | I170: 79 | J170: RECLTD
A171: BANKBARODA | B171: 60484 | C171: 60009 | D171: 475 | E171: 0.79 | F171: 27992 | H171: =IFERROR( RANK(F171,$F$2:$F$500,0)+COUNTIF($F$2:F171,F171)-1, "") -> 69 | I171: 69 | J171: BANKBARODA
A172: SUNPHARMA | B172: 96148 | C172: 95424 | D172: 724 | E172: 0.76 | F172: 56653 | H172: =IFERROR( RANK(F172,$F$2:$F$500,0)+COUNTIF($F$2:F172,F172)-1, "") -> 35 | I172: 35 | J172: SUNPHARMA
A173: KAYNES | B173: 57659 | C173: 57234 | D173: 425 | E173: 0.74 | F173: 33987 | H173: =IFERROR( RANK(F173,$F$2:$F$500,0)+COUNTIF($F$2:F173,F173)-1, "") -> 59 | I173: 59 | J173: KAYNES
A174: IDEA | B174: 124426 | C174: 123521 | D174: 905 | E174: 0.73 | F174: 24754 | H174: =IFERROR( RANK(F174,$F$2:$F$500,0)+COUNTIF($F$2:F174,F174)-1, "") -> 78 | I174: 78 | J174: IDEA
A175: BDL | B175: 25819 | C175: 25632 | D175: 187 | E175: 0.73 | F175: 13586 | H175: =IFERROR( RANK(F175,$F$2:$F$500,0)+COUNTIF($F$2:F175,F175)-1, "") -> 127 | I175: 127 | J175: BDL
A176: POLYCAB | B176: 31401 | C176: 31175 | D176: 226 | E176: 0.72 | F176: 25560 | H176: =IFERROR( RANK(F176,$F$2:$F$500,0)+COUNTIF($F$2:F176,F176)-1, "") -> 74 | I176: 74 | J176: POLYCAB
A177: MFSL | B177: 29370 | C177: 29159 | D177: 211 | E177: 0.72 | F177: 3983 | H177: =IFERROR( RANK(F177,$F$2:$F$500,0)+COUNTIF($F$2:F177,F177)-1, "") -> 202 | I177: 202 | J177: MFSL
A178: TITAN | B178: 90722 | C178: 90105 | D178: 617 | E178: 0.68 | F178: 37477 | H178: =IFERROR( RANK(F178,$F$2:$F$500,0)+COUNTIF($F$2:F178,F178)-1, "") -> 54 | I178: 54 | J178: TITAN
A179: IRFC | B179: 28858 | C179: 28671 | D179: 187 | E179: 0.65 | F179: 10866 | H179: =IFERROR( RANK(F179,$F$2:$F$500,0)+COUNTIF($F$2:F179,F179)-1, "") -> 151 | I179: 151 | J179: IRFC
A180: NYKAA | B180: 18572 | C180: 18459 | D180: 113 | E180: 0.61 | F180: 2974 | H180: =IFERROR( RANK(F180,$F$2:$F$500,0)+COUNTIF($F$2:F180,F180)-1, "") -> 209 | I180: 209 | J180: NYKAA
A181: HINDZINC | B181: 54647 | C181: 54316 | D181: 331 | E181: 0.61 | F181: 15523 | H181: =IFERROR( RANK(F181,$F$2:$F$500,0)+COUNTIF($F$2:F181,F181)-1, "") -> 117 | I181: 117 | J181: HINDZINC
A182: LICHSGFIN | B182: 43282 | C182: 43027 | D182: 255 | E182: 0.59 | F182: 9303 | H182: =IFERROR( RANK(F182,$F$2:$F$500,0)+COUNTIF($F$2:F182,F182)-1, "") -> 172 | I182: 172 | J182: LICHSGFIN
A183: NBCC | B183: 16542 | C183: 16453 | D183: 89 | E183: 0.54 | F183: 3000 | H183: =IFERROR( RANK(F183,$F$2:$F$500,0)+COUNTIF($F$2:F183,F183)-1, "") -> 207 | I183: 207 | J183: NBCC
A184: NAUKRI | B184: 37555 | C184: 37374 | D184: 181 | E184: 0.48 | F184: 11724 | H184: =IFERROR( RANK(F184,$F$2:$F$500,0)+COUNTIF($F$2:F184,F184)-1, "") -> 142 | I184: 142 | J184: NAUKRI
A185: VEDL | B185: 88803 | C185: 88491 | D185: 312 | E185: 0.35 | F185: 60339 | H185: =IFERROR( RANK(F185,$F$2:$F$500,0)+COUNTIF($F$2:F185,F185)-1, "") -> 32 | I185: 32 | J185: VEDL
A186: BHARTIARTL | B186: 158336 | C186: 157790 | D186: 546 | E186: 0.35 | F186: 69411 | H186: =IFERROR( RANK(F186,$F$2:$F$500,0)+COUNTIF($F$2:F186,F186)-1, "") -> 26 | I186: 26 | J186: BHARTIARTL
A187: DRREDDY | B187: 37804 | C187: 37674 | D187: 130 | E187: 0.35 | F187: 15962 | H187: =IFERROR( RANK(F187,$F$2:$F$500,0)+COUNTIF($F$2:F187,F187)-1, "") -> 115 | I187: 115 | J187: DRREDDY
A188: AUBANK | B188: 36199 | C188: 36076 | D188: 123 | E188: 0.34 | F188: 11427 | H188: =IFERROR( RANK(F188,$F$2:$F$500,0)+COUNTIF($F$2:F188,F188)-1, "") -> 148 | I188: 148 | J188: AUBANK
A189: AMBUJACEM | B189: 75829 | C189: 75595 | D189: 234 | E189: 0.31 | F189: 14352 | H189: =IFERROR( RANK(F189,$F$2:$F$500,0)+COUNTIF($F$2:F189,F189)-1, "") -> 123 | I189: 123 | J189: AMBUJACEM
A190: DMART | B190: 49016 | C190: 48873 | D190: 143 | E190: 0.29 | F190: 32267 | H190: =IFERROR( RANK(F190,$F$2:$F$500,0)+COUNTIF($F$2:F190,F190)-1, "") -> 61 | I190: 61 | J190: DMART
A191: JSWSTEEL | B191: 93424 | C191: 93162 | D191: 262 | E191: 0.28 | F191: 11651 | H191: =IFERROR( RANK(F191,$F$2:$F$500,0)+COUNTIF($F$2:F191,F191)-1, "") -> 145 | I191: 145 | J191: JSWSTEEL
A192: SBIN | B192: 202184 | C192: 201650 | D192: 534 | E192: 0.26 | F192: 164411 | H192: =IFERROR( RANK(F192,$F$2:$F$500,0)+COUNTIF($F$2:F192,F192)-1, "") -> 6 | I192: 6 | J192: SBIN
A193: SHREECEM | B193: 19710 | C193: 19659 | D193: 51 | E193: 0.26 | F193: 3802 | H193: =IFERROR( RANK(F193,$F$2:$F$500,0)+COUNTIF($F$2:F193,F193)-1, "") -> 203 | I193: 203 | J193: SHREECEM
A194: SIEMENS | B194: 24291 | C194: 24235 | D194: 56 | E194: 0.23 | F194: 22719 | H194: =IFERROR( RANK(F194,$F$2:$F$500,0)+COUNTIF($F$2:F194,F194)-1, "") -> 83 | I194: 83 | J194: SIEMENS
A195: ADANIPORTS | B195: 75297 | C195: 75140 | D195: 157 | E195: 0.21 | F195: 40778 | H195: =IFERROR( RANK(F195,$F$2:$F$500,0)+COUNTIF($F$2:F195,F195)-1, "") -> 48 | I195: 48 | J195: =IFERROR( IF(AND(I195<>"", A195<>"NIFTY", A195<>"BANKNIFTY", A195<>"MIDCPNIFTY", A195<>"FINNIFTY" ), A195, ""), "") -> ADANIPORTS
A196: CUMMINSIND | B196: 28294 | C196: 28240 | D196: 54 | E196: 0.19 | F196: 20900 | H196: =IFERROR( RANK(F196,$F$2:$F$500,0)+COUNTIF($F$2:F196,F196)-1, "") -> 92 | I196: =IFERROR( IF(AND(H196<>"", A196<>"NIFTY", A196<>"BANKNIFTY", A196<>"MIDCPNIFTY", A196<>"FINNIFTY" ), H196, ""), "") -> 92 | J196: CUMMINSIND
A197: PNB | B197: 54258 | C197: 54156 | D197: 102 | E197: 0.19 | F197: 20839 | H197: =IFERROR( RANK(F197,$F$2:$F$500,0)+COUNTIF($F$2:F197,F197)-1, "") -> 94 | I197: 94 | J197: PNB
A198: PAYTM | B198: 38173 | C198: 38106 | D198: 67 | E198: 0.18 | F198: 15650 | H198: =IFERROR( RANK(F198,$F$2:$F$500,0)+COUNTIF($F$2:F198,F198)-1, "") -> 116 | I198: 116 | J198: PAYTM
A199: PNBHOUSING | B199: 24603 | C199: 24564 | D199: 39 | E199: 0.16 | F199: 4479 | H199: =IFERROR( RANK(F199,$F$2:$F$500,0)+COUNTIF($F$2:F199,F199)-1, "") -> 201 | I199: 201 | J199: PNBHOUSING
A200: DIVISLAB | B200: 42059 | C200: 42103 | D200: -44 | E200: -0.1 | F200: 17129 | H200: =IFERROR( RANK(F200,$F$2:$F$500,0)+COUNTIF($F$2:F200,F200)-1, "") -> 105 | I200: 105 | J200: DIVISLAB
... 301 more rows

Sheet G (hidden)

Sheet L (hidden)
A1: symbol | B1: ltp | C1: prev_price | D1: net_price
A2: EICHERMOT | B2: 7050 | C2: 7424 | D2: -5.04
A3: CHOLAFIN | B3: 1505.5 | C3: 1581.2 | D3: -4.79
A4: MARUTI | B4: 13076 | C4: 13709 | D4: -4.62
A5: APLAPOLLO | B5: 1978.2 | C5: 2064.6 | D5: -4.18
A6: HEROMOTOCO | B6: 5245 | C6: 5466.5 | D6: -4.05
A7: NAM-INDIA | B7: 917 | C7: 955.25 | D7: -4
A8: POLICYBZR | B8: 1450.1 | C8: 1509.8 | D8: -3.95
A9: SWIGGY | B9: 265.55 | C9: 275 | D9: -3.44
A10: ASHOKLEY | B10: 172.2 | C10: 178.02 | D10: -3.27
A11: BAJFINANCE | B11: 897.05 | C11: 924.55 | D11: -2.97
A12: UNITDSPR | B12: 1231.2 | C12: 1268.2 | D12: -2.92
A13: HYUNDAI | B13: 1745 | C13: 1796.4 | D13: -2.86
A14: GODFRYPHLP | B14: 2041.9 | C14: 2101.6 | D14: -2.84
A15: TVSMOTOR | B15: 3732.5 | C15: 3839.9 | D15: -2.8
A16: HINDPETRO | B16: 350.5 | C16: 360.6 | D16: -2.8
A17: CUMMINSIND | B17: 4997 | C17: 5138.7 | D17: -2.76
A18: MOTILALOFS | B18: 757.35 | C18: 778.55 | D18: -2.72
A19: RELIANCE | B19: 1314 | C19: 1350.2 | D19: -2.68
A20: HDFCAMC | B20: 2550 | C20: 2619.3 | D20: -2.65
A21: INDIGO | B21: 4433.9 | C21: 4554.2 | D21: -2.64

Sheet Sectors (hidden)
A1: name | B1: lastPrice | C1: pChange | D1: open | E1: low | F1: name
A2: NIFTY 50 | B2: 23842.65 | C2: -0.86 | D2: 23589.6 | E2: 23555.6 | F2: NIFTY 50 | S2: =LARGE(C:C,1) -> 8.75 | T2: =VLOOKUP(S2,C:F,4,FALSE) -> INDIA VIX | U2: =VLOOKUP(T2,A:B,2,FALSE) -> 20.5
A3: NIFTY NEXT 50 | B3: 67123.3 | C3: -0.77 | D3: 66038.4 | E3: 65625.55 | F3: NIFTY NEXT 50 | S3: =LARGE(C:C,2) -> 0.93 | T3: =VLOOKUP(S3,C:F,4,FALSE) -> NIFTY50 TR 1X INV | U3: =VLOOKUP(T3,A:B,2,FALSE) -> 179.9
A4: NIFTY BANK | B4: 55605.05 | C4: -0.55 | D4: 54646 | E4: 54356.2 | F4: NIFTY BANK | S4: =LARGE(C:C,3) -> 0.89 | T4: NIFTY50 PR 1X INV | U4: 220.05
A5: NIFTY FIN SERVICE | B5: 26047.5 | C5: -0.63 | D5: 25645.35 | E5: 25525.05 | F5: NIFTY FIN SERVICE | S5: =LARGE(C:C,4) -> 0.42 | T5: NIFTY IND DEFENCE | U5: 8334.5
A6: NIFTY MID SELECT | B6: 13269.45 | C6: -1.02 | D6: 13115.2 | E6: 13046.65 | F6: NIFTY MID SELECT | S6: =LARGE(C:C,5) -> 0.37 | T6: NIFTY IPO | U6: 2009.35
A7: NIFTY 100 | B7: 24599.65 | C7: -0.85 | D7: 24314.2 | E7: 24259.2 | F7: NIFTY 100 | S7: =LARGE(C:C,6) -> 0.26 | T7: NIFTY CPSE | U7: 7142.65
A8: NIFTY 200 | B8: 13473.3 | C8: -0.8 | D8: 13309.45 | E8: 13268 | F8: NIFTY 200 | S8: =LARGE(C:C,7) -> 0.06 | T8: NIFTY ENERGY | U8: 37195.05
A9: NIFTY 500 | B9: 22179.05 | C9: -0.75 | D9: 21906.15 | E9: 21816.35 | F9: NIFTY 500 | S9: =LARGE(C:C,8) -> 0.02 | T9: BHARATBOND-APR31 | U9: 1427.58
A10: NIFTY MIDCAP 50 | B10: 16326.3 | C10: -0.77 | D10: 16128.65 | E10: 16020.9 | F10: NIFTY MIDCAP 50 | S10: =LARGE(C:C,9) -> 0.01 | T10: BHARATBOND-APR30 | U10: 1573.42
A11: NIFTY MIDCAP 100 | B11: 57513.3 | C11: -0.57 | D11: 56676.4 | E11: 56289.5 | F11: NIFTY MIDCAP 100 | S11: =LARGE(C:C,10) -> 0.01 | T11: BHARATBOND-APR30 | U11: 1573.42
A12: NIFTY SMLCAP 100 | B12: 16762 | C12: -0.46 | D12: 16523.6 | E12: 16338.9 | F12: NIFTY SMLCAP 100
A13: INDIA VIX | B13: 20.5 | C13: 8.75 | D13: 18.85 | E13: 18.18 | F13: INDIA VIX | S13: =SMALL(C:C,1) -> -2.12 | T13: =VLOOKUP(S13,C:F,4,FALSE) -> NIFTY MOBILITY | U13: 21023.6
A14: NIFTY MIDCAP 150 | B14: 21177.6 | C14: -0.58 | D14: 20886.3 | E14: 20729.2 | F14: NIFTY MIDCAP 150 | S14: =SMALL(C:C,2) -> -2.09 | T14: =VLOOKUP(S14,C:F,4,FALSE) -> NIFTY AUTO | U14: 26084.55
A15: NIFTY SMLCAP 50 | B15: 8167.5 | C15: -0.43 | D15: 8048.55 | E15: 7963.95 | F15: NIFTY SMLCAP 50 | S15: =SMALL(C:C,3) -> -1.99 | T15: NIFTY TRANS LOGIS | U15: 23442.9
A16: NIFTY SMLCAP 250 | B16: 15687.95 | C16: -0.41 | D16: 15462.7 | E16: 15293.15 | F16: NIFTY SMLCAP 250 | S16: =SMALL(C:C,4) -> -1.77 | T16: NIFTY50 TR 2X LEV | U16: 17911.8
A17: NIFTY MIDSML 400 | B17: 19146.15 | C17: -0.52 | D17: 18878.95 | E17: 18715.7 | F17: NIFTY MIDSML 400 | S17: =SMALL(C:C,5) -> -1.77 | T17: NIFTY50 TR 2X LEV | U17: 17911.8
A18: NIFTY500 MULTICAP | B18: 15390.6 | C18: -0.67 | D18: 15192.9 | E18: 15106.95 | F18: NIFTY500 MULTICAP | S18: =SMALL(C:C,6) -> -1.69 | T18: NIFTY GROWSECT 15 | U18: 10881.6
A19: NIFTY LARGEMID250 | B19: 15778.9 | C19: -0.71 | D19: 15578.7 | E19: 15502.8 | F19: NIFTY LARGEMID250 | S19: =SMALL(C:C,7) -> -1.66 | T19: NIFTY200MOMENTM30 | U19: 30007.6
A20: NIFTY TOTAL MKT | B20: 12455.3 | C20: -0.72 | D20: 12298.65 | E20: 12245.7 | F20: NIFTY TOTAL MKT | S20: =SMALL(C:C,8) -> -1.64 | T20: NIFTY50 USD | U20: 8839.2
A21: NIFTY MICROCAP250 | B21: 21441.55 | C21: -0.04 | D21: 21023.75 | E21: 20808.9 | F21: NIFTY MICROCAP250 | S21: =SMALL(C:C,9) -> -1.61 | T21: NIFTY INTERNET | U21: 1161.3
A22: NIFTY500 LMS EQL | B22: 16957.95 | C22: -0.61 | D22: 16733.2 | E22: 16619.1 | F22: NIFTY500 LMS EQL | S22: =SMALL(C:C,10) -> -1.49 | T22: NIFTY MNC | U22: 30028.55
A23: NIFTY FPI 150 | B23: 1502.8 | C23: -0.85 | D23: 1485.9 | E23: 1481.7 | F23: NIFTY FPI 150
A24: NIFTY AUTO | B24: 26084.55 | C24: -2.09 | D24: 26041.6 | E24: 25910.45 | F24: NIFTY AUTO
A25: NIFTY FINSRV25 50 | B25: 28438.8 | C25: -0.51 | D25: 27983.35 | E25: 27852.55 | F25: NIFTY FINSRV25 50
A26: NIFTY FMCG | B26: 47570.4 | C26: -1.29 | D26: 47486.25 | E26: 47285.35 | F26: NIFTY FMCG
A27: NIFTY IT | B27: 30669.8 | C27: -1.16 | D27: 30619.75 | E27: 30402.25 | F27: NIFTY IT
A28: NIFTY MEDIA | B28: 1360.4 | C28: -0.35 | D28: 1344.45 | E28: 1327.5 | F28: NIFTY MEDIA
A29: NIFTY METAL | B29: 12329.3 | C29: -0.22 | D29: 12147.75 | E29: 12104.3 | F29: NIFTY METAL
A30: NIFTY PHARMA | B30: 22100.1 | C30: -0.29 | D30: 21971.7 | E30: 21846.05 | F30: NIFTY PHARMA
A31: NIFTY PSU BANK | B31: 8713.9 | C31: -0.73 | D31: 8538.9 | E31: 8451.5 | F31: NIFTY PSU BANK
A32: NIFTY PVT BANK | B32: 26702.45 | C32: -0.29 | D32: 26232.6 | E32: 26141.05 | F32: NIFTY PVT BANK
A33: NIFTY REALTY | B33: 757.2 | C33: -0.27 | D33: 739.4 | E33: 729.1 | F33: NIFTY REALTY
A34: NIFTY HEALTHCARE | B34: 14154.95 | C34: -0.28 | D34: 14055.8 | E34: 13989.4 | F34: NIFTY HEALTHCARE
A35: NIFTY CONSR DURBL | B35: 36303.85 | C35: -0.44 | D35: 35533.95 | E35: 35478.95 | F35: NIFTY CONSR DURBL
A36: NIFTY OIL AND GAS | B36: 11035.9 | C36: -1.41 | D36: 10952.85 | E36: 10893.55 | F36: NIFTY OIL AND GAS
A37: NIFTY MIDSML HLTH | B37: 43193.85 | C37: -0.4 | D37: 42843.1 | E37: 42447.45 | F37: NIFTY MIDSML HLTH
A38: NIFTY FINSEREXBNK | B38: 30233.6 | C38: -1.19 | D38: 29896.1 | E38: 29675.95 | F38: NIFTY FINSEREXBNK
A39: NIFTY MS FIN SERV | B39: 20299.2 | C39: -0.57 | D39: 19981.7 | E39: 19843.5 | F39: NIFTY MS FIN SERV
A40: NIFTY MS IT TELCM | B40: 8486.15 | C40: -0.43 | D40: 8380.15 | E40: 8310.45 | F40: NIFTY MS IT TELCM
A41: NIFTY CHEMICALS | B41: 26995.4 | C41: -0.28 | D41: 26590.25 | E41: 26188.85 | F41: NIFTY CHEMICALS
A42: NIFTY500 HEALTH | B42: 18134.5 | C42: -0.27 | D42: 17972.3 | E42: 17866 | F42: NIFTY500 HEALTH
A43: NIFTY DIV OPPS 50 | B43: 6017 | C43: -0.89 | D43: 5966.5 | E43: 5946.1 | F43: NIFTY DIV OPPS 50
A44: NIFTY GROWSECT 15 | B44: 10881.6 | C44: -1.69 | D44: 10890.65 | E44: 10847.7 | F44: NIFTY GROWSECT 15
A45: NIFTY100 QUALTY30 | B45: 5385.85 | C45: -1.01 | D45: 5354.25 | E45: 5336.15 | F45: NIFTY100 QUALTY30
A46: NIFTY50 VALUE 20 | B46: 12387.8 | C46: -0.37 | D46: 12244.7 | E46: 12198.05 | F46: NIFTY50 VALUE 20
A47: NIFTY50 TR 2X LEV | B47: 17911.8 | C47: -1.77 | D47: 17528.15 | E47: 17477.4 | F47: NIFTY50 TR 2X LEV
A48: NIFTY50 PR 2X LEV | B48: 11942.3 | C48: -1.77 | D48: 11686.5 | E48: 11652.65 | F48: NIFTY50 PR 2X LEV
A49: NIFTY50 TR 1X INV | B49: 179.9 | C49: 0.93 | D49: 181.75 | E49: 179.4 | F49: NIFTY50 TR 1X INV
A50: NIFTY50 PR 1X INV | B50: 220.05 | C50: 0.89 | D50: 222.35 | E50: 219.5 | F50: NIFTY50 PR 1X INV
A51: NIFTY50 DIV POINT | B51: 0 | C51: 0 | D51: 0 | E51: 0 | F51: NIFTY50 DIV POINT
A52: NIFTY ALPHA 50 | B52: 49507.2 | C52: -0.64 | D52: 48757.05 | E52: 48458.1 | F52: NIFTY ALPHA 50
A53: NIFTY50 EQL WGT | B53: 31599 | C53: -0.84 | D53: 31275.7 | E53: 31237.95 | F53: NIFTY50 EQL WGT
A54: NIFTY100 EQL WGT | B54: 32553 | C54: -0.78 | D54: 32110.2 | E54: 31988.95 | F54: NIFTY100 EQL WGT
A55: NIFTY100 LOWVOL30 | B55: 19381.05 | C55: -0.91 | D55: 19249.9 | E55: 19190.05 | F55: NIFTY100 LOWVOL30
A56: NIFTY200 QUALTY30 | B56: 19525.4 | C56: -1.16 | D56: 19437.4 | E56: 19371.9 | F56: NIFTY200 QUALTY30
A57: NIFTY ALPHALOWVOL | B57: 25388.2 | C57: -0.99 | D57: 25173.55 | E57: 25075.3 | F57: NIFTY ALPHALOWVOL
A58: NIFTY200MOMENTM30 | B58: 30007.6 | C58: -1.66 | D58: 29768.35 | E58: 29578.25 | F58: NIFTY200MOMENTM30
A59: NIFTY M150 QLTY50 | B59: 22441.85 | C59: -1.11 | D59: 22287 | E59: 22087.4 | F59: NIFTY M150 QLTY50
A60: NIFTY200 ALPHA 30 | B60: 24720.65 | C60: -0.74 | D60: 24364.15 | E60: 24186.35 | F60: NIFTY200 ALPHA 30
A61: NIFTYM150MOMNTM50 | B61: 60119.3 | C61: -1.14 | D61: 59486.5 | E61: 59074.75 | F61: NIFTYM150MOMNTM50
A62: NIFTY500MOMENTM50 | B62: 50841.6 | C62: -1.45 | D62: 50395.45 | E62: 50115.45 | F62: NIFTY500MOMENTM50
A63: NIFTYMS400 MQ 100 | B63: 47396.7 | C63: -0.65 | D63: 46770.9 | E63: 46534.6 | F63: NIFTYMS400 MQ 100
A64: NIFTYSML250MQ 100 | B64: 41615.65 | C64: -0.36 | D64: 40953.65 | E64: 40612.95 | F64: NIFTYSML250MQ 100
A65: NIFTY TOP 10 EW | B65: 8761.3 | C65: -0.77 | D65: 8656.75 | E65: 8652 | F65: NIFTY TOP 10 EW
A66: NIFTY AQL 30 | B66: 21431.55 | C66: -1.33 | D66: 21362.15 | E66: 21268.5 | F66: NIFTY AQL 30
A67: NIFTY AQLV 30 | B67: 19502.85 | C67: -1.32 | D67: 19431.7 | E67: 19388.6 | F67: NIFTY AQLV 30
A68: NIFTY HIGHBETA 50 | B68: 3815.15 | C68: -0.06 | D68: 3726.2 | E68: 3696.3 | F68: NIFTY HIGHBETA 50
A69: NIFTY LOW VOL 50 | B69: 23784.7 | C69: -0.88 | D69: 23597.7 | E69: 23519.9 | F69: NIFTY LOW VOL 50
A70: NIFTY QLTY LV 30 | B70: 15833.35 | C70: -1.26 | D70: 15796.8 | E70: 15737.8 | F70: NIFTY QLTY LV 30
A71: NIFTY SML250 Q50 | B71: 23796.25 | C71: -0.22 | D71: 23426.25 | E71: 23196.55 | F71: NIFTY SML250 Q50
A72: NIFTY TOP 15 EW | B72: 9788.1 | C72: -1.21 | D72: 9707.35 | E72: 9685.35 | F72: NIFTY TOP 15 EW
A73: NIFTY100 ALPHA 30 | B73: 17438.35 | C73: -1.09 | D73: 17219.05 | E73: 17141.6 | F73: NIFTY100 ALPHA 30
A74: NIFTY200 VALUE 30 | B74: 15173.85 | C74: -0.48 | D74: 14930.3 | E74: 14892.05 | F74: NIFTY200 VALUE 30
A75: NIFTY500 EW | B75: 13458.45 | C75: -0.5 | D75: 13266.05 | E75: 13144.4 | F75: NIFTY500 EW
A76: NIFTY MULTI MQ 50 | B76: 40269.2 | C76: -1.11 | D76: 39832.5 | E76: 39720.7 | F76: NIFTY MULTI MQ 50
A77: NIFTY500 VALUE 50 | B77: 16044.95 | C77: -0.38 | D77: 15798.65 | E77: 15753 | F77: NIFTY500 VALUE 50
A78: NIFTY TOP 20 EW | B78: 8684.65 | C78: -1.08 | D78: 8614.35 | E78: 8606.95 | F78: NIFTY TOP 20 EW
A79: NIFTY500 QLTY50 | B79: 18531.5 | C79: -0.52 | D79: 18304.3 | E79: 18239.75 | F79: NIFTY500 QLTY50
A80: NIFTY500 LOWVOL50 | B80: 21665.95 | C80: -0.95 | D80: 21519.25 | E80: 21430.6 | F80: NIFTY500 LOWVOL50
A81: NIFTY500 MQVLV50 | B81: 30292.85 | C81: -1.3 | D81: 30096.85 | E81: 29875.25 | F81: NIFTY500 MQVLV50
A82: NIFTY50 USD | B82: 8839.2 | C82: -1.64 | D82: 8987.1 | E82: 8536.2 | F82: NIFTY50 USD
A83: NIFTY500 FLEXICAP | B83: 9486.35 | C83: -1.46 | D83: 9461.3 | E83: 9431.4 | F83: NIFTY500 FLEXICAP
A84: NIFTY TMMQ 50 | B84: 41928.25 | C84: -1.05 | D84: 41443.8 | E84: 41322.55 | F84: NIFTY TMMQ 50
A85: NIFTY COMMODITIES | B85: 9728.2 | C85: -0.27 | D85: 9590.35 | E85: 9552.8 | F85: NIFTY COMMODITIES
A86: NIFTY CONSUMPTION | B86: 11080.25 | C86: -1.24 | D86: 10989.25 | E86: 10972.5 | F86: NIFTY CONSUMPTION
A87: NIFTY CPSE | B87: 7142.65 | C87: 0.26 | D87: 7061.25 | E87: 7048.35 | F87: NIFTY CPSE
A88: NIFTY ENERGY | B88: 37195.05 | C88: 0.06 | D88: 36575.55 | E88: 36532.4 | F88: NIFTY ENERGY
A89: NIFTY INFRA | B89: 9044.05 | C89: -0.8 | D89: 8908.75 | E89: 8894.95 | F89: NIFTY INFRA
A90: NIFTY100 LIQ 15 | B90: 7083.4 | C90: -1.22 | D90: 7008.9 | E90: 6982.1 | F90: NIFTY100 LIQ 15
A91: NIFTY MID LIQ 15 | B91: 15358.65 | C91: -0.57 | D91: 15116.2 | E91: 15063.55 | F91: NIFTY MID LIQ 15
A92: NIFTY MNC | B92: 30028.55 | C92: -1.49 | D92: 29986 | E92: 29807.95 | F92: NIFTY MNC
A93: NIFTY PSE | B93: 10162.55 | C93: -0.1 | D93: 10004 | E93: 9987.35 | F93: NIFTY PSE
A94: NIFTY SERV SECTOR | B94: 30706.95 | C94: -0.48 | D94: 30254.85 | E94: 30213.3 | F94: NIFTY SERV SECTOR
A95: NIFTY100ESGSECLDR | B95: 3980.7 | C95: -0.82 | D95: 3935.15 | E95: 3926 | F95: NIFTY100ESGSECLDR
A96: NIFTY IND DIGITAL | B96: 7752.7 | C96: -1.17 | D96: 7710.6 | E96: 7675.2 | F96: NIFTY IND DIGITAL
A97: NIFTY100 ESG | B97: 4819.15 | C97: -0.83 | D97: 4764.55 | E97: 4751.9 | F97: NIFTY100 ESG
A98: NIFTY INDIA MFG | B98: 15042.15 | C98: -1.08 | D98: 14921.55 | E98: 14842.95 | F98: NIFTY INDIA MFG
A99: NIFTY TATA 25 CAP | B99: 14488.45 | C99: -0.88 | D99: 14321.05 | E99: 14299.3 | F99: NIFTY TATA 25 CAP
A100: NIFTY MULTI MFG | B100: 15273.9 | C100: -1.03 | D100: 15154.35 | E100: 15058.3 | F100: NIFTY MULTI MFG
A101: NIFTY MULTI INFRA | B101: 13662.1 | C101: -0.5 | D101: 13447 | E101: 13368.05 | F101: NIFTY MULTI INFRA
A102: NIFTY IND DEFENCE | B102: 8334.5 | C102: 0.42 | D102: 8147 | E102: 8074.8 | F102: NIFTY IND DEFENCE
A103: NIFTY IND TOURISM | B103: 7201.2 | C103: -1.22 | D103: 7056.85 | E103: 7033.8 | F103: NIFTY IND TOURISM
A104: NIFTY CAPITAL MKT | B104: 4949.25 | C104: -0.08 | D104: 4854.95 | E104: 4842.45 | F104: NIFTY CAPITAL MKT
A105: NIFTY EV | B105: 2885.2 | C105: -1.39 | D105: 2868.2 | E105: 2843.65 | F105: NIFTY EV
A106: NIFTY NEW CONSUMP | B106: 10679.5 | C106: -1.31 | D106: 10557.85 | E106: 10514.05 | F106: NIFTY NEW CONSUMP
A107: NIFTY CORP MAATR | B107: 36291.4 | C107: -0.86 | D107: 35821 | E107: 35729.05 | F107: NIFTY CORP MAATR
A108: NIFTY MOBILITY | B108: 21023.6 | C108: -2.12 | D108: 20912.5 | E108: 20828.7 | F108: NIFTY MOBILITY
A109: NIFTY100 ENH ESG | B109: 4852.95 | C109: -0.84 | D109: 4798.25 | E109: 4785.55 | F109: NIFTY100 ENH ESG
A110: NIFTY COREHOUSING | B110: 14217.75 | C110: -0.63 | D110: 13968.8 | E110: 13841.6 | F110: NIFTY COREHOUSING
A111: NIFTY HOUSING | B111: 11556.05 | C111: -0.03 | D111: 11308.7 | E111: 11248.7 | F111: NIFTY HOUSING
A112: NIFTY IPO | B112: 2009.35 | C112: 0.37 | D112: 1965.6 | E112: 1951.35 | F112: NIFTY IPO
A113: NIFTY MS IND CONS | B113: 16984.7 | C113: -0.9 | D113: 16789.25 | E113: 16638.95 | F113: NIFTY MS IND CONS
A114: NIFTY NONCYC CONS | B114: 14259.8 | C114: -1.06 | D114: 14109.6 | E114: 14092.65 | F114: NIFTY NONCYC CONS
A115: NIFTY RURAL | B115: 15008.4 | C115: -1.03 | D115: 14859.5 | E115: 14778.75 | F115: NIFTY RURAL
A116: NIFTY SHARIAH 25 | B116: 7648.95 | C116: -1.23 | D116: 7621.2 | E116: 7601.8 | F116: NIFTY SHARIAH 25
A117: NIFTY TRANS LOGIS | B117: 23442.9 | C117: -1.99 | D117: 23319.5 | E117: 23221.3 | F117: NIFTY TRANS LOGIS
A118: NIFTY50 SHARIAH | B118: 4283.7 | C118: -0.95 | D118: 4266.85 | E118: 4250.15 | F118: NIFTY50 SHARIAH
A119: NIFTY500 SHARIAH | B119: 6606.2 | C119: -0.81 | D119: 6546.45 | E119: 6523.05 | F119: NIFTY500 SHARIAH
A120: NIFTY SME EMERGE | B120: 13076.05 | C120: -0.17 | D120: 12997.85 | E120: 12901.55 | F120: NIFTY SME EMERGE
A121: NIFTY INTERNET | B121: 1161.3 | C121: -1.61 | D121: 1154.2 | E121: 1146.8 | F121: NIFTY INTERNET
A122: NIFTY WAVES | B122: 1846.85 | C122: -0.04 | D122: 1815.7 | E122: 1801.25 | F122: NIFTY WAVES
A123: NIFTY INFRALOG | B123: 11294.5 | C123: -0.32 | D123: 11074.65 | E123: 11021.8 | F123: NIFTY INFRALOG
A124: NIFTY RAILWAYSPSU | B124: 3042.45 | C124: -0.73 | D124: 2996.3 | E124: 2965.6 | F124: NIFTY RAILWAYSPSU
A125: NIFTYCONGLOMERATE | B125: 14103.85 | C125: -1.06 | D125: 13937.15 | E125: 13879.85 | F125: NIFTYCONGLOMERATE
A126: NIFTY GS 8 13YR | B126: 2968.25 | C126: -0.08 | D126: 2971.31 | E126: 2961.36 | F126: NIFTY GS 8 13YR
A127: NIFTY GS 10YR | B127: 2602.48 | C127: -0.16 | D127: 2607.14 | E127: 2596.57 | F127: NIFTY GS 10YR
A128: NIFTY GS 10YR CLN | B128: 871.1 | C128: -0.17 | D128: 872.66 | E128: 869.12 | F128: NIFTY GS 10YR CLN
A129: NIFTY GS 4 8YR | B129: 3247.44 | C129: -0.01 | D129: 3248.43 | E129: 3241.38 | F129: NIFTY GS 4 8YR
A130: NIFTY GS 11 15YR | B130: 3240.72 | C130: -0.16 | D130: 3246.63 | E130: 3233.81 | F130: NIFTY GS 11 15YR
A131: NIFTY GS 15YRPLUS | B131: 3441.62 | C131: -0.23 | D131: 3450.41 | E131: 3432.92 | F131: NIFTY GS 15YRPLUS
A132: NIFTY GS COMPSITE | B132: 3048.87 | C132: -0.12 | D132: 3053.31 | E132: 3042.25 | F132: NIFTY GS COMPSITE
A133: BHARATBOND-APR30 | B133: 1573.42 | C133: 0.01 | D133: 1573.49 | E133: 1573.42 | F133: BHARATBOND-APR30
A134: BHARATBOND-APR31 | B134: 1427.58 | C134: 0.02 | D134: 1427.52 | E134: 1427.52 | F134: BHARATBOND-APR31
A135: BHARATBOND-APR32 | B135: 1292.16 | C135: 0.01 | D135: 1292.16 | E135: 1292.16 | F135: BHARATBOND-APR32
A136: BHARATBOND-APR33 | B136: 1252.13 | C136: 0.01 | D136: 1252.17 | E136: 1252.13 | F136: BHARATBOND-APR33

Sheet fut (hidden)
A1: underlying | B1: lastPrice | C1: pChange | D1: openInterest | E1: underlying
A2: NIFTY | B2: 23850 | C2: -1.041450562 | D2: 294362 | E2: NIFTY | S2: =LARGE(C:C,1) -> 9.681597901 | T2: =VLOOKUP(S2,C:F,3,FALSE) -> NIFTYNXT50 | U2: =VLOOKUP(T2,A:B,2,FALSE) -> 67349.2 | V2: =VLOOKUP(T2,A:D,4,FALSE) -> 657
A3: HDFCBANK | B3: 795.7 | C3: -2.055637617 | D3: 569050 | E3: HDFCBANK | S3: =LARGE(C:C,2) -> 3.165166185 | T3: =VLOOKUP(S3,C:F,3,FALSE) -> ADANIPOWER | U3: =VLOOKUP(T3,A:B,2,FALSE) -> 182.2 | V3: =VLOOKUP(T3,A:D,4,FALSE) -> 18011
A4: ICICIBANK | B4: 1346.7 | C4: 1.691459639 | D4: 146862 | E4: ICICIBANK | S4: =LARGE(C:C,3) -> 2.530541012 | T4: TATAPOWER | U4: 411.25 | V4: 38756
A5: BANKNIFTY | B5: 55748 | C5: -0.5870478555 | D5: 69054 | E5: BANKNIFTY | S5: =LARGE(C:C,4) -> 2.109181141 | T5: ADANIENT | U5: 2139.8 | V5: 51771
A6: INFY | B6: 1276 | C6: -1.276595745 | D6: 204213 | E6: INFY | S6: =LARGE(C:C,5) -> 1.812450749 | T6: NTPC | U6: 387.6 | V6: 53616
A7: RELIANCE | B7: 1318.3 | C7: -2.708487085 | D7: 160900 | E7: RELIANCE | S7: =LARGE(C:C,6) -> 1.691459639 | T7: ICICIBANK | U7: 1346.7 | V7: 146862
A8: LT | B8: 3952.2 | C8: -0.3404190937 | D8: 78023 | E8: LT | S8: =LARGE(C:C,7) -> 0.6523111454 | T8: BHEL | U8: 287 | V8: 40326
A9: MARUTI | B9: 13120 | C9: -4.428904429 | D9: 63675 | E9: MARUTI | S9: =LARGE(C:C,8) -> 0.2915451895 | T9: TMPV | U9: 344 | V9: 67928
A10: SBIN | B10: 1061.85 | C10: -0.617717254 | D10: 101000 | E10: SBIN | S10: =LARGE(C:C,9) -> 0.1700303098 | T10: AXISBANK | U10: 1355 | V10: 88107
A11: TCS | B11: 2458.2 | C11: -2.157299793 | D11: 187124 | E11: TCS | S11: =LARGE(C:C,10) -> -0.3404190937 | T11: LT | U11: 3952.2 | V11: 78023
A12: BHEL | B12: 287 | C12: 0.6523111454 | D12: 40326 | E12: BHEL
A13: TATAPOWER | B13: 411.25 | C13: 2.530541012 | D13: 38756 | E13: TATAPOWER | S13: =SMALL(C:C,1) -> -4.428904429 | T13: =VLOOKUP(S13,C:F,3,FALSE) -> MARUTI | U13: 13120 | V13: 63675
A14: TMPV | B14: 344 | C14: 0.2915451895 | D14: 67928 | E14: TMPV | S14: =SMALL(C:C,2) -> -2.832585545 | T14: =VLOOKUP(S14,C:F,3,FALSE) -> BAJFINANCE | U14: 898.75 | V14: 93140
A15: HINDALCO | B15: 979.2 | C15: -1.469108473 | D15: 50997 | E15: HINDALCO | S15: =SMALL(C:C,3) -> -2.764391483 | T15: INDIGO | U15: 4439 | V15: 48053
A16: AXISBANK | B16: 1355 | C16: 0.1700303098 | D16: 88107 | E16: AXISBANK | S16: =SMALL(C:C,4) -> -2.708487085 | T16: RELIANCE | U16: 1318.3 | V16: 160900
A17: KOTAKBANK | B17: 373.7 | C17: -0.6513359032 | D17: 99055 | E17: KOTAKBANK | S17: =SMALL(C:C,5) -> -2.157299793 | T17: TCS | U17: 2458.2 | V17: 187124
A18: M&M | B18: 3215.2 | C18: -1.561447554 | D18: 85098 | E18: M&M | S18: =SMALL(C:C,6) -> -2.055637617 | T18: HDFCBANK | U18: 795.7 | V18: 569050
A19: ADANIPOWER | B19: 182.2 | C19: 3.165166185 | D19: 18011 | E19: ADANIPOWER | S19: =SMALL(C:C,7) -> -1.561447554 | T19: M&M | U19: 3215.2 | V19: 85098
A20: ADANIENT | B20: 2139.8 | C20: 2.109181141 | D20: 51771 | E20: ADANIENT | S20: =SMALL(C:C,8) -> -1.469108473 | T20: HINDALCO | U20: 979.2 | V20: 50997
A21: BAJFINANCE | B21: 898.75 | C21: -2.832585545 | D21: 93140 | E21: BAJFINANCE | S21: =SMALL(C:C,9) -> -1.276595745 | T21: INFY | U21: 1276 | V21: 204213
A22: INDIGO | B22: 4439 | C22: -2.764391483 | D22: 48053 | E22: INDIGO | S22: =SMALL(C:C,10) -> -1.218826731 | T22: MIDCPNIFTY | U22: 13289.55 | V22: 21739
A23: NTPC | B23: 387.6 | C23: 1.812450749 | D23: 53616 | E23: NTPC
A24: NIFTY | B24: 23990 | C24: -0.9369489902 | D24: 34386 | E24: NIFTY
A25: MIDCPNIFTY | B25: 13289.55 | C25: -1.045424592 | D25: 21739 | E25: MIDCPNIFTY
A26: BANKNIFTY | B26: 55980 | C26: -0.5577859097 | D26: 11654 | E26: BANKNIFTY
A27: NIFTY | B27: 24152.5 | C27: -0.8933041173 | D27: 12390 | E27: NIFTY
A28: BANKNIFTY | B28: 56305 | C28: -0.4547206438 | D28: 2343 | E28: BANKNIFTY
A29: MIDCPNIFTY | B29: 13327.25 | C29: -0.9107975985 | D29: 851 | E29: MIDCPNIFTY
A30: FINNIFTY | B30: 26094.9 | C30: -0.7319123683 | D30: 478 | E30: FINNIFTY
A31: NIFTYNXT50 | B31: 67349.2 | C31: -0.6124177663 | D31: 657 | E31: NIFTYNXT50
A32: NIFTYNXT50 | B32: 67615.8 | C32: -0.6471122396 | D32: 70 | E32: NIFTYNXT50
A33: MIDCPNIFTY | B33: 13356.4 | C33: -1.218826731 | D33: 54 | E33: MIDCPNIFTY
A34: FINNIFTY | B34: 26195.3 | C34: -0.7475580276 | D34: 20 | E34: FINNIFTY
A35: NIFTYNXT50 | B35: 67400 | C35: 9.681597901 | D35: 0 | E35: NIFTYNXT50
